Payment Date,Invoice Reference,Revised Net,Irrecoverable VAT,Vendor,Expense Area Description,Expense Type,Expense Type Description,Revenue / Capital
01/07/2019,Mar-19,4000,0,Band Of Wy Fire & Rescue Servi,CORPORATE SERVICES,44500,Grants,Revenue
01/07/2019,SC077853,-4250,0,Dale Power Solutions Ltd,PROPERTY,20000,Ann Contract/Service,Revenue
01/07/2019,27783,1481.46,0,BCS Electrics Ltd,USAR,40012,CBRN,Revenue
01/07/2019,SI200400,4250,0,Dale Power Solutions Ltd,PROPERTY,20000,Ann Contract/Service,Revenue
01/07/2019,6459,457,0,Geckops Ltd t/a Gecko Property Solu,Dewsbury New,21014,General Rep & Maint,Revenue
01/07/2019,2815,9795,0,Aire Valley Tree Services Ltd,PROPERTY,24000,Grounds Maintenance,Revenue
01/07/2019,180658,8507.34,0,Cmt Flexibles Ltd,OPERATIONS EQUIPMENT,40005,Operational Equ Pch,Revenue
01/07/2019,9958,10380,0,Burgess & Co Ltd,Fire Safety Prev,45108,Fire Prevn Pblcty,Revenue
01/07/2019,7131/05229309,442.04,0,Brammer Buck & Hickman,FLEET MAINTENANCE,30005,Workshop Equipment,Revenue
01/07/2019,EXI1291777,559.56,0,Lex Autolease,FLEET MANAGEMENT,34001,Vehicle Leasing,Revenue
01/07/2019,XRIN304977,813.68,0,Lex Autolease,FLEET MANAGEMENT,34001,Vehicle Leasing,Revenue
01/07/2019,MLIN085028,3002.16,0,Lex Autolease,FLEET MANAGEMENT,34001,Vehicle Leasing,Revenue
01/07/2019,173234,1000,0,Bank House Chambers,FIRE LEGAL,42587,Legal Expenses,Revenue
01/07/2019,6494,1381,0,Geckops Ltd t/a Gecko Property Solu,PROPERTY,21014,General Rep & Maint,Revenue
01/07/2019,708165,416.85,0,CM Specialist Vehicle Division,FLEET MANAGEMENT,34001,Vehicle Leasing,Revenue
01/07/2019,216681358,968,0,FUCHS LUBRICANTS (UK) LTD,FLEET MAINTENANCE,30002,Consumables-Veh Rep,Revenue
01/07/2019,SINV9424104,1108.59,0,Finning Uk Ltd,FLEET MANAGEMENT,30004,Rep-Ext Contractors,Revenue
01/07/2019,SN3047252,600,0,Berendsen UK Ltd t/a Elis,SUPPLIES SECTION,41900,Laundry,Revenue
01/07/2019,MC/209,675,0,Montgomery & Coupers Ltd,Killingbeck,42511,Consultancy Fees,Revenue
01/07/2019,XRIN305989,1389.06,0,Lex Autolease,FLEET MANAGEMENT,34001,Vehicle Leasing,Revenue
01/07/2019,ARCV282570,644,0,Alliance Automotive UK CV Ltd T/a,FLEET MAINTENANCE,30001,Dir Cost-Spare Parts,Revenue
01/07/2019,BSLEEI00080,1475,0,Watts Group PLC,PROPERTY,21014,General Rep & Maint,Revenue
01/07/2019,36868,483.41,0,Supply +,FLEET MAINTENANCE,30001,Dir Cost-Spare Parts,Revenue
01/07/2019,IRIN659013,6505.32,605.13,Lex Autolease,Calderdale Dist Com,34001,Vehicle Leasing,Revenue
02/07/2019,1523181-01,-494.3,0,Crossroads Truck & Bus Ltd,FLEET MAINTENANCE,30001,Dir Cost-Spare Parts,Revenue
02/07/2019,MC/211,1580,0,Montgomery & Coupers Ltd,CORPORATE MANAGEMENT AND SUPPORT,59061,Inst Srv-Commctn,Capital
02/07/2019,2567,17186.24,0,Jt Services Group,CORPORATE MANAGEMENT AND SUPPORT,59052,Cont-External,Capital
02/07/2019,EXI1292395,718.03,65.32,Lex Autolease,Various,34001,Vehicle Leasing,Revenue
02/07/2019,PI384152,498.67,0,Safety-Kleen Uk Ltd,FLEET MAINTENANCE,30002,Consumables-Veh Rep,Revenue
02/07/2019,1746054,4648.77,0,Ecco Safety Group (UK) Ltd,FLEET MANAGEMENT,34002,Vhcle Leas Misc Exp,Revenue
02/07/2019,EXI1293990,472.15,0,Lex Autolease,FLEET MANAGEMENT,34001,Vehicle Leasing,Revenue
02/07/2019,0940000048-079A,3051.31,0,Airwave Solutions Ltd,Information Technlgy,43026,Radio Licensing,Revenue
02/07/2019,1522976-01,2471.5,0,Crossroads Truck & Bus Ltd,FLEET MAINTENANCE,30001,Dir Cost-Spare Parts,Revenue
02/07/2019,1523244-01,494.3,0,Crossroads Truck & Bus Ltd,FLEET MAINTENANCE,30001,Dir Cost-Spare Parts,Revenue
02/07/2019,6329,440,0,Harry G Rhodes & Sons Ltd,FLEET MANAGEMENT,30004,Rep-Ext Contractors,Revenue
02/07/2019,6327,931.27,0,Harry G Rhodes & Sons Ltd,FLEET MANAGEMENT,30004,Rep-Ext Contractors,Revenue
02/07/2019,0940000048-079D,443.97,0,Airwave Solutions Ltd,Information Technlgy,43026,Radio Licensing,Revenue
02/07/2019,984077,1318.73,0,Gritit Ltd,Various,24000,Grounds Maintenance,Revenue
02/07/2019,EC20162103,428.65,0,Kcom,Information Technlgy,43018,Wan Rental,Revenue
02/07/2019,2571706,2998.6,0,Bayford Oil,HUDDERSFIELD,30200,Vehicle Fuel,Revenue
02/07/2019,2295,3724,0,Rh Environmental Services Ltd,NEW CONTROL PROJECT,20000,Ann Contract/Service,Revenue
02/07/2019,1957,490.68,0,Richard P Walsh & Company Ltd,FLEET MAINTENANCE,30001,Dir Cost-Spare Parts,Revenue
02/07/2019,27846,1629.6,0,BCS Electrics Ltd,TRAINING DELIVERY,21014,General Rep & Maint,Revenue
03/07/2019,RAIN304715,4366.68,0,Lex Autolease,FLEET MANAGEMENT,34001,Vehicle Leasing,Revenue
03/07/2019,EXI1294361,879.98,0,Lex Autolease,FLEET MANAGEMENT,34001,Vehicle Leasing,Revenue
03/07/2019,6328,1000,0,Harry G Rhodes & Sons Ltd,FLEET MANAGEMENT,30006,Ins Claims Excess,Revenue
03/07/2019,97658A,3138.77,0,Townley Network Solutions Ltd,Various,43015,Landlines Call Charges,Revenue
03/07/2019,14048440,4293.54,0,Corona Energy,PROPERTY,25001,Energy-Gas,Revenue
03/07/2019,LGWCLGSW,1356.38,0,Npower Ltd,KEIGHLEY,25001,Energy-Gas,Revenue
03/07/2019,INV-1782,1972,0,Robert Whetham Associates,PROPERTY,20002,Contract Management,Revenue
04/07/2019,LGWCLBN8,-418.12,0,Npower Ltd,GARFORTH,25000,Energy-Electric,Revenue
04/07/2019,LGWCLBPB,-604.8,0,Npower Ltd,COOKRIDGE,25000,Energy-Electric,Revenue
04/07/2019,LGWCLBN9,-1151.55,0,Npower Ltd,COOKRIDGE,25000,Energy-Electric,Revenue
04/07/2019,LGWCLGS4,685.84,0,Npower Ltd,Ossett New,25000,Energy-Electric,Revenue
04/07/2019,LGWCLGS3,855.33,0,Npower Ltd,South Kirkby,25000,Energy-Electric,Revenue
04/07/2019,LGWCLW76,915.61,0,Npower Ltd,ILLINGWORTH,25000,Energy-Electric,Revenue
04/07/2019,IN50479,609.33,0,BAM FM Limited,NEW CONTROL PROJECT,21012,Heating & Mechanical,Revenue
04/07/2019,IN50483,644.82,0,BAM FM Limited,TRAINING DELIVERY,21012,Heating & Mechanical,Revenue
04/07/2019,IN50487,722.61,0,BAM FM Limited,WETHERBY,21012,Heating & Mechanical,Revenue
04/07/2019,IN50488,815.63,0,BAM FM Limited,TRAINING DELIVERY,21012,Heating & Mechanical,Revenue
04/07/2019,IN50489,655.65,0,BAM FM Limited,PROPERTY,21012,Heating & Mechanical,Revenue
04/07/2019,IN50490,524.25,0,BAM FM Limited,FLEET MAINTENANCE,21012,Heating & Mechanical,Revenue
04/07/2019,IN50491,1405.13,0,BAM FM Limited,HUDDERSFIELD,21012,Heating & Mechanical,Revenue
04/07/2019,IN50492,793.04,0,BAM FM Limited,Skelmanthorpe,21014,General Rep & Maint,Revenue
04/07/2019,LGWCLGSX,842.9,0,Npower Ltd,ODSAL,25000,Energy-Electric,Revenue
04/07/2019,LGWCLGS2,924.65,0,Npower Ltd,BINGLEY,25000,Energy-Electric,Revenue
04/07/2019,IN50494,448.62,0,BAM FM Limited,WETHERBY,21012,Heating & Mechanical,Revenue
04/07/2019,IN50496,1596.55,0,BAM FM Limited,TRAINING DELIVERY,21012,Heating & Mechanical,Revenue
04/07/2019,LGWCLGSZ,799.8,0,Npower Ltd,RAWDON,25000,Energy-Electric,Revenue
04/07/2019,LGWCLW75,683.02,0,Npower Ltd,GARFORTH,25000,Energy-Electric,Revenue
04/07/2019,LGWCLGSS,850.55,0,Npower Ltd,COOKRIDGE,25000,Energy-Electric,Revenue
04/07/2019,LGWCLGST,447.1,0,Npower Ltd,COOKRIDGE,25000,Energy-Electric,Revenue
04/07/2019,IN50512,1405.6,0,BAM FM Limited,Various,21012,Heating & Mechanical,Revenue
04/07/2019,14048426,919.38,0,Corona Energy,NEW CONTROL PROJECT,25001,Energy-Gas,Revenue
04/07/2019,IN50513,636.36,0,BAM FM Limited,TRAINING DELIVERY,21012,Heating & Mechanical,Revenue
05/07/2019,IN50515,727.89,0,BAM FM Limited,Ossett New,21012,Heating & Mechanical,Revenue
05/07/2019,1523809-01,1408.37,0,Crossroads Truck & Bus Ltd,FLEET MAINTENANCE,30001,Dir Cost-Spare Parts,Revenue
05/07/2019,1523790-01,1599,0,Crossroads Truck & Bus Ltd,FLEET MAINTENANCE,30001,Dir Cost-Spare Parts,Revenue
05/07/2019,1523730-01,589.08,0,Crossroads Truck & Bus Ltd,FLEET MAINTENANCE,30001,Dir Cost-Spare Parts,Revenue
05/07/2019,TFM664/05,1627.5,0,Thomson FM Ltd,PROPERTY,42511,Consultancy Fees,Revenue
05/07/2019,27804,418.88,0,BCS Electrics Ltd,HUDDERSFIELD,21013,Electrical Reps (Fr),Revenue
05/07/2019,204087,500,0,West Midlands Police & Crime Commis,TRAINING DELIVERY,19239,Ops Supp Tng,Revenue
05/07/2019,984079,1240,0,Gritit Ltd,Various,24000,Grounds Maintenance,Revenue
05/07/2019,MJA01401,2004.85,0,Mja Consultants,HUDDERSFIELD,21013,Electrical Reps (Fr),Revenue
05/07/2019,SI883183,1149.2,0,Burmatex Plc,CORPORATE MANAGEMENT AND SUPPORT,59163,Furniture & Fittings,Capital
05/07/2019,6.55659E+14,978.97,0,Yorkshire Water,CORPORATE MANAGEMENT AND SUPPORT,59164,Equipment,Capital
05/07/2019,E2011315801,2877.55,0,Allstar Business Solutions Ltd,Various,30200,Vehicle Fuel,Revenue
05/07/2019,I0021901,3156,0,Merseyside Fire & Rescue Authority,USAR,40017,USAR,Revenue
08/07/2019,MLCR085207,-1756.65,0,Lex Autolease,FLEET MANAGEMENT,34001,Vehicle Leasing,Revenue
08/07/2019,MLCR085032,-2698.08,0,Lex Autolease,FLEET MANAGEMENT,34001,Vehicle Leasing,Revenue
08/07/2019,MLCR085008,-1774.25,0,Lex Autolease,FLEET MANAGEMENT,34001,Vehicle Leasing,Revenue
08/07/2019,1523781-01,-922.62,0,Crossroads Truck & Bus Ltd,FLEET MANAGEMENT,30006,Ins Claims Excess,Revenue
08/07/2019,MLCR085301,-2496.3,0,Lex Autolease,FLEET MANAGEMENT,34001,Vehicle Leasing,Revenue
08/07/2019,65552763000000X,1427.11,0,Yorkshire Water,CORPORATE MANAGEMENT AND SUPPORT,59164,Equipment,Capital
08/07/2019,130923,739.6,0,Keela International Ltd,CORPORATE MANAGEMENT AND SUPPORT,59164,Equipment,Capital
08/07/2019,IN50557,983.91,0,BAM FM Limited,CORPORATE MANAGEMENT AND SUPPORT,59052,Cont-External,Capital
08/07/2019,1019356,30302.78,0,Bytes Security Partnerships Lt,CORPORATE MANAGEMENT AND SUPPORT,59166,Computer Costs,Capital
08/07/2019,1019356,9606.27,0,Bytes Security Partnerships Lt,Information Technlgy,43103,ICT Maintenance & Support,Revenue
08/07/2019,SINV064107,1489,0,Woodway Engineering Ltd,FLEET MANAGEMENT,34002,Vhcle Leas Misc Exp,Revenue
08/07/2019,239584,578.87,0,J R Industries Ltd,FLEET MAINTENANCE,30001,Dir Cost-Spare Parts,Revenue
08/07/2019,6291348681,500,0,Leeds City Council,Information Technlgy,44600,Subscriptions,Revenue
08/07/2019,IN50561,1272.5,0,BAM FM Limited,HUNSLET,21014,General Rep & Maint,Revenue
08/07/2019,IN50564,769.25,0,BAM FM Limited,FLEET MAINTENANCE,21012,Heating & Mechanical,Revenue
08/07/2019,2202,1037.99,0,Trafficlear Ltd,FLEET MANAGEMENT,34002,Vhcle Leas Misc Exp,Revenue
08/07/2019,2197,1037.99,0,Trafficlear Ltd,FLEET MANAGEMENT,34002,Vhcle Leas Misc Exp,Revenue
08/07/2019,2196,1037.99,0,Trafficlear Ltd,FLEET MANAGEMENT,34002,Vhcle Leas Misc Exp,Revenue
08/07/2019,2194,1038.03,0,Trafficlear Ltd,FLEET MANAGEMENT,34002,Vhcle Leas Misc Exp,Revenue
08/07/2019,2192,1037.99,0,Trafficlear Ltd,FLEET MANAGEMENT,34002,Vhcle Leas Misc Exp,Revenue
08/07/2019,2189,1037.99,0,Trafficlear Ltd,FLEET MANAGEMENT,34002,Vhcle Leas Misc Exp,Revenue
08/07/2019,IN50579,983.14,0,BAM FM Limited,TRAINING DELIVERY,21012,Heating & Mechanical,Revenue
08/07/2019,1523598-01,922.62,0,Crossroads Truck & Bus Ltd,FLEET MANAGEMENT,30006,Ins Claims Excess,Revenue
08/07/2019,IRIN658807,35385.6,0,Lex Autolease,FLEET MANAGEMENT,34001,Vehicle Leasing,Revenue
08/07/2019,IRIN661771,4383.83,396.37,Lex Autolease,Kirklees Dist Com,34001,Vehicle Leasing,Revenue
08/07/2019,2604990,10027.01,0,Bayford Oil,TRAINING DELIVERY,30200,Vehicle Fuel,Revenue
08/07/2019,2606953,3007.5,0,Bayford Oil,Cleckheaton,30200,Vehicle Fuel,Revenue
08/07/2019,2619610,4010,0,Bayford Oil,COOKRIDGE,30200,Vehicle Fuel,Revenue
08/07/2019,44638,545,0,Enserve Corporation Ltd,ILLINGWORTH,21014,General Rep & Maint,Revenue
08/07/2019,MJA01414,2947.6,0,Mja Consultants,BRADFORD,21013,Electrical Reps (Fr),Revenue
08/07/2019,IN1191200040329,16062.86,0,GTT Communications,Various,43018,Wan Rental,Revenue
08/07/2019,984078,800,0,Gritit Ltd,PROPERTY,24000,Grounds Maintenance,Revenue
08/07/2019,3,575,0,PK Prep Ltd,RECRUITS,40502,Food,Revenue
08/07/2019,4,500,0,PK Prep Ltd,RECRUITS,40502,Food,Revenue
08/07/2019,Jun-19,4140,0,Dr N A L Smith (Medical Services) L,Health & Safety,18301,Specialists Fees,Revenue
09/07/2019,LGWCR2ST,1138.44,0,Npower Ltd,LEEDS,25000,Energy-Electric,Revenue
09/07/2019,LGWCR2SS,809.89,0,Npower Ltd,ROTHWELL,25000,Energy-Electric,Revenue
09/07/2019,3053418511,1624.68,0,British Oxygen Co Ltd,Various,40005,Operational Equ Pch,Revenue
09/07/2019,LGWCR2SR,451.09,0,Npower Ltd,NORMANTON,25000,Energy-Electric,Revenue
09/07/2019,LGWCR2SQ,850.54,0,Npower Ltd,PONTEFRACT,25000,Energy-Electric,Revenue
09/07/2019,8604885173,720,0,KC - Document Solutions,FINANCE SECTION,42539,Professional Service,Revenue
09/07/2019,LGWCR2SP,1851.66,0,Npower Ltd,BRADFORD,25000,Energy-Electric,Revenue
09/07/2019,LGWCR2SN,4354.08,0,Npower Ltd,NEW CONTROL PROJECT,25000,Energy-Electric,Revenue
09/07/2019,LGWCR2SM,641.68,0,Npower Ltd,Shipley New,25000,Energy-Electric,Revenue
09/07/2019,2021456,3460,0,Cleanbright (Leeds) Ltd,Various,28500,Window Cleaning,Revenue
09/07/2019,IN-S104-421991,5520,0,Meltwater (UK) Ltd,PUBLIC INFORMATION,40221,Publty/Promtn/Media,Revenue
09/07/2019,LGWCR2SJ,858.97,0,Npower Ltd,Rastrick,25000,Energy-Electric,Revenue
09/07/2019,LGWCR2SH,8049.4,0,Npower Ltd,PROPERTY,25000,Energy-Electric,Revenue
09/07/2019,LGWCR2SL,1029.24,0,Npower Ltd,Killingbeck,25000,Energy-Electric,Revenue
09/07/2019,LGWCR2SK,799.86,0,Npower Ltd,Dewsbury New,25000,Energy-Electric,Revenue
09/07/2019,14119109,1516.75,0,Corona Energy,PROPERTY,25001,Energy-Gas,Revenue
09/07/2019,2830,975,0,Advanced Monitoring Limited,PROPERTY,20000,Ann Contract/Service,Revenue
09/07/2019,14119040,740.75,0,Corona Energy,NEW CONTROL PROJECT,25001,Energy-Gas,Revenue
09/07/2019,1009748056,599.55,0,Hays Specialist Recruitment,FINANCE SECTION,15001,Admin - Basic Pay,Revenue
09/07/2019,1009688693,599.55,0,Hays Specialist Recruitment,FINANCE SECTION,15001,Admin - Basic Pay,Revenue
09/07/2019,CD20191016291,945.91,0,Survitec Service & Distribution Ltd,OPERATIONS EQUIPMENT,40005,Operational Equ Pch,Revenue
09/07/2019,8839,510,0,Epi-Use Limited,Information Technlgy,43103,ICT Maintenance & Support,Revenue
09/07/2019,INV003831,11655,0,Lemongrass Consulting,Information Technlgy,43030,SAP running Costs,Revenue
09/07/2019,SND00001597,1971.82,0,AON Limited Accounts Division,FINANCE SECTION,42508,Central Insurances,Revenue
09/07/2019,KEI004326,647.49,0,Stertil UK Ltd,FLEET MAINTENANCE,30005,Workshop Equipment,Revenue
09/07/2019,1524283-01,422.23,0,Crossroads Truck & Bus Ltd,FLEET MAINTENANCE,30001,Dir Cost-Spare Parts,Revenue
09/07/2019,3067,804,0,HR Inner Circle Ltd,EMPLOYMENT SERVICES,44600,Subscriptions,Revenue
10/07/2019,IN030595,776,0,Commercial & Plant Exhausts,FLEET MAINTENANCE,30001,Dir Cost-Spare Parts,Revenue
10/07/2019,ARCV281063,1405.5,0,Alliance Automotive UK CV Ltd T/a,FLEET MAINTENANCE,30001,Dir Cost-Spare Parts,Revenue
10/07/2019,9697,74222.24,0,Zurich Municipal,CORPORATE SERVICES,42508,Central Insurances,Revenue
10/07/2019,52403363,660,0,Volvo Group Uk Ltd,Information Technlgy,43103,ICT Maintenance & Support,Revenue
10/07/2019,03RA013256,6432.56,0,Zurich Municipal,CORPORATE SERVICES,45101,Ext Insurance Policy,Revenue
10/07/2019,03RA019007,290390.07,0,Zurich Municipal,FLEET MANAGEMENT,30103,Vehicle Insurance,Revenue
10/07/2019,C/HT180960,3885,0,Civica UK Ltd,FLEET MANAGEMENT,30004,Rep-Ext Contractors,Revenue
10/07/2019,1524095-01,484.75,0,Crossroads Truck & Bus Ltd,FLEET MAINTENANCE,30001,Dir Cost-Spare Parts,Revenue
10/07/2019,14317/8,4572,0,Rance Booth & Smith Architects,PROPERTY,42511,Consultancy Fees,Revenue
10/07/2019,113587,775,0,Aaa Training Co Ltd,TRAINING DELIVERY,19241,Service Supp Tng,Revenue
11/07/2019,MLCR085159,-2958.78,0,Lex Autolease,FLEET MANAGEMENT,34001,Vehicle Leasing,Revenue
11/07/2019,MLCR085157,-509.76,-36.52,Lex Autolease,FLEET MANAGEMENT,34001,Vehicle Leasing,Revenue
11/07/2019,EXI1293778,435.55,36.52,Lex Autolease,Various,34001,Vehicle Leasing,Revenue
11/07/2019,DAIN423682,939,0,Lex Autolease,FLEET MANAGEMENT,34002,Vhcle Leas Misc Exp,Revenue
11/07/2019,XRIN307104,505.19,46.11,Lex Autolease,Various,34001,Vehicle Leasing,Revenue
11/07/2019,SINV3304,3200,0,Wakefield College,TRAINING DELIVERY,19203,Non Uniformed,Revenue
11/07/2019,141832,3863,0,Physio Med Ltd,Health & Safety,18301,Specialists Fees,Revenue
11/07/2019,27886,440.73,0,BCS Electrics Ltd,ODSAL,21013,Electrical Reps (Fr),Revenue
11/07/2019,IRIN660356,6074.76,0,Lex Autolease,FLEET MANAGEMENT,34001,Vehicle Leasing,Revenue
11/07/2019,14048430,551.38,0,Corona Energy,TRAINING DELIVERY,25001,Energy-Gas,Revenue
11/07/2019,14048434,598.55,0,Corona Energy,ODSAL,25001,Energy-Gas,Revenue
11/07/2019,14048422,461.43,0,Corona Energy,BINGLEY,25001,Energy-Gas,Revenue
11/07/2019,14048432,465.32,0,Corona Energy,PONTEFRACT,25001,Energy-Gas,Revenue
11/07/2019,14048425,691.26,0,Corona Energy,TRAINING DELIVERY,25001,Energy-Gas,Revenue
11/07/2019,14048429,1654.64,0,Corona Energy,BRADFORD,25001,Energy-Gas,Revenue
11/07/2019,247751,421.95,0,SYNLAB Laboratory Services Ltd,Health & Safety,18301,Specialists Fees,Revenue
11/07/2019,14048420,828.43,0,Corona Energy,KEIGHLEY,25001,Energy-Gas,Revenue
11/07/2019,14048421,676.3,0,Corona Energy,CASTLEFORD,25001,Energy-Gas,Revenue
11/07/2019,14048419,1996.38,0,Corona Energy,WAKEFIELD,25001,Energy-Gas,Revenue
11/07/2019,14048414,912.82,0,Corona Energy,Slaithwaite,25001,Energy-Gas,Revenue
11/07/2019,14048413,574.23,0,Corona Energy,MOORTOWN,25001,Energy-Gas,Revenue
11/07/2019,14048405,542.47,0,Corona Energy,FAIRWEATHER GREEN,25001,Energy-Gas,Revenue
11/07/2019,14048409,1547.4,0,Corona Energy,HALIFAX,25001,Energy-Gas,Revenue
11/07/2019,2019-24,2223.7,0,Daniels Caf�,CORPORATE SERVICES,40502,Food,Revenue
11/07/2019,14048408,1046.69,0,Corona Energy,LEEDS,25001,Energy-Gas,Revenue
11/07/2019,14048407,776.78,0,Corona Energy,RAWDON,25001,Energy-Gas,Revenue
11/07/2019,14048404,601.31,0,Corona Energy,ILLINGWORTH,25001,Energy-Gas,Revenue
11/07/2019,14048402,986.13,0,Corona Energy,COOKRIDGE,25001,Energy-Gas,Revenue
11/07/2019,14048397,1007.79,0,Corona Energy,PROPERTY,25001,Energy-Gas,Revenue
11/07/2019,14048395,939.44,0,Corona Energy,Cleckheaton,25001,Energy-Gas,Revenue
11/07/2019,14048428,509.14,0,Corona Energy,TODMORDEN,25001,Energy-Gas,Revenue
11/07/2019,SRD00002844,66639.32,0,AON Limited Accounts Division,FINANCE SECTION,42508,Central Insurances,Revenue
12/07/2019,INV13209L,443.75,0,3D Productions,Corp Mgmt & Support,40215,Annual Review,Capital
12/07/2019,147118,7238.45,0,Southcombe Brothers Ltd,SUPPLIES SECTION,41500,Clothing,Revenue
12/07/2019,E2011368630,3030.44,0,Allstar Business Solutions Ltd,Various,30200,Vehicle Fuel,Revenue
12/07/2019,27887,492.38,0,BCS Electrics Ltd,PONTEFRACT,21013,Electrical Reps (Fr),Revenue
12/07/2019,44463,435,0,Enserve Corporation Ltd,Various,20000,Ann Contract/Service,Revenue
12/07/2019,SI-469,496.64,0,Cafe Perfection,Skelmanthorpe,21013,Electrical Reps (Fr),Revenue
15/07/2019,71249,4800,0,Oakbase Intergrated Marketing Ltd,PUBLIC INFORMATION,40221,Publty/Promtn/Media,Revenue
15/07/2019,SN3071828,758,0,Berendsen UK Ltd t/a Elis,SUPPLIES SECTION,41900,Laundry,Revenue
15/07/2019,27917,448.09,0,BCS Electrics Ltd,FAIRWEATHER GREEN,21013,Electrical Reps (Fr),Revenue
15/07/2019,173465,1250,0,Bank House Chambers,FIRE LEGAL,42587,Legal Expenses,Revenue
15/07/2019,498276G,849.65,0,Arena Group Limited,COMMAND TRAINING,42201,Photocopier Charges,Revenue
15/07/2019,ARCV286232,480,0,Alliance Automotive UK CV Ltd T/a,FLEET MAINTENANCE,30001,Dir Cost-Spare Parts,Revenue
15/07/2019,34,3404,0,National BA Challenge,TRAINING DELIVERY,19238,Ops Res Tng,Revenue
15/07/2019,PLPS080419,1300,0,Presentation Station,PUBLIC INFORMATION,40221,Publty/Promtn/Media,Revenue
15/07/2019,1421,1150,0,Rotherham United Community Sports T,TRAINING DELIVERY,19240,Prot/Prev Tng,Revenue
15/07/2019,1400026499,750,0,Northern Lincs & Goole NHS Foundati,TRAINING DELIVERY,19208,Fire Safy Crses-Extl,Revenue
15/07/2019,687344,1109.5,0,Access Uk Ltd,CORPORATE MANAGEMENT AND SUPPORT,59166,Computer Costs,Capital
15/07/2019,SI203339,1748,0,Dale Power Solutions Ltd,Various,20000,Ann Contract/Service,Revenue
15/07/2019,27446,933.6,0,Crossley Evans Ltd,TRAINING DELIVERY,28506,Refuse Collect/Disp,Revenue
15/07/2019,27447,784.8,0,Crossley Evans Ltd,TRAINING DELIVERY,28506,Refuse Collect/Disp,Revenue
16/07/2019,CRE/1588,-593.8,0,DFP Services Limited,HALIFAX,21013,Electrical Reps (Fr),Revenue
16/07/2019,SI202783,2250,0,Dale Power Solutions Ltd,Various,20000,Ann Contract/Service,Revenue
16/07/2019,SI204763,2000,0,Dale Power Solutions Ltd,Various,20000,Ann Contract/Service,Revenue
16/07/2019,INV-025060,591.54,0,Sit-Stand.com,Various,40100,Furniture,Revenue
16/07/2019,INV/22135,593.8,0,DFP Services Limited,HALIFAX,21013,Electrical Reps (Fr),Revenue
16/07/2019,2487,975,0,Advanced Monitoring Limited,PROPERTY,20000,Ann Contract/Service,Revenue
16/07/2019,INV/5554,892,0,Industrial Door Solutions Limited,MOORTOWN,21006,Appliance Bay Doors,Revenue
16/07/2019,2176,560,0,Hall Lane Recyclers Ltd,Calderdale District Prevention,40025,Scrap Cars Purch,Revenue
16/07/2019,1009628564,488.04,0,Hays Specialist Recruitment,FINANCE SECTION,15001,Admin - Basic Pay,Revenue
16/07/2019,1009647340,427.04,0,Hays Specialist Recruitment,FINANCE SECTION,15001,Admin - Basic Pay,Revenue
16/07/2019,1009670175,488.04,0,Hays Specialist Recruitment,FINANCE SECTION,15001,Admin - Basic Pay,Revenue
16/07/2019,11319,720.85,0,Rosenbauer UK PLC,SUPPLIES SECTION,41500,Clothing,Revenue
16/07/2019,ATC-17498,540,0,UK-AFI,Fire Investigation,19240,Prot/Prev Tng,Revenue
16/07/2019,INV-1939,4460.61,0,Pulse Cashflow Finance,Various,28502,Contract Cleaning,Revenue
16/07/2019,20719,595,0,Dr I L Griffiths,Health & Safety,18301,Specialists Fees,Revenue
16/07/2019,INV-2569,4460.61,0,Pulse Cashflow Finance,Various,28502,Contract Cleaning,Revenue
16/07/2019,INV-2571,909.49,0,Pulse Cashflow Finance,PONTEFRACT,28502,Contract Cleaning,Revenue
17/07/2019,CN2125,-7203,0,BAM FM Limited,PROPERTY,21014,General Rep & Maint,Revenue
17/07/2019,INV-1868,909.49,0,Pulse Cashflow Finance,PONTEFRACT,28502,Contract Cleaning,Revenue
17/07/2019,INV-1867,5540.26,0,Pulse Cashflow Finance,Various,28502,Contract Cleaning,Revenue
17/07/2019,INV-2570,5540.26,0,Pulse Cashflow Finance,Various,28502,Contract Cleaning,Revenue
17/07/2019,INV-2640,8668,0,Pulse Cashflow Finance,Various,28502,Contract Cleaning,Revenue
17/07/2019,INV-1938,8668,0,Pulse Cashflow Finance,Various,28502,Contract Cleaning,Revenue
17/07/2019,8046363,1369.8,0,Angus Fire Ltd,OPERATIONS EQUIPMENT,40005,Operational Equ Pch,Revenue
17/07/2019,3200,470.25,0,B & A Textiles Ltd,OPERATIONS TEAM,41500,Clothing,Revenue
17/07/2019,2192,560,0,Hall Lane Recyclers Ltd,HUNSLET,40025,Scrap Cars Purch,Revenue
17/07/2019,1010,510,0,SJ Facilities,TRAINING DELIVERY,21014,General Rep & Maint,Revenue
17/07/2019,INV/26108,476.75,0,DFP Services Limited,CASTLEFORD,21013,Electrical Reps (Fr),Revenue
17/07/2019,IN45394,12005,0,BAM FM Limited,Various,21014,General Rep & Maint,Revenue
17/07/2019,SI-132635,602.1,0,Medtree,SUPPLIES SECTION,40026,First Aid Equ Pch,Revenue
17/07/2019,"13,292",671.84,0,Bella Refreshments Ltd,SUPPLIES SECTION,40514,Emergency Food,Revenue
17/07/2019,SS136,720,0,D Ellis Services,PROPERTY,20000,Ann Contract/Service,Revenue
17/07/2019,SS137,940,0,D Ellis Services,PROPERTY,20000,Ann Contract/Service,Revenue
17/07/2019,9523,2085,0,Ioda Limited,CORPORATE DIVERSITY,19235,Emp Svc Tng,Revenue
17/07/2019,9524,4170,0,Ioda Limited,CORPORATE DIVERSITY,19235,Emp Svc Tng,Revenue
17/07/2019,1019510,7774.52,0,Bytes Security Partnerships Lt,Information Technlgy,43103,ICT Maintenance & Support,Revenue
17/07/2019,816565,3825,0,Fire Service College Limited,TRAINING DELIVERY,19241,Service Supp Tng,Revenue
17/07/2019,816564,2275,0,Fire Service College Limited,TRAINING DELIVERY,19241,Service Supp Tng,Revenue
18/07/2019,ARCMCN/00430152,-7627.12,0,Consult CRM,Information Technlgy,43103,ICT Maintenance & Support,Revenue
18/07/2019,ARCMIN/00432500,7095,0,Consult CRM,Information Technlgy,43103,ICT Maintenance & Support,Revenue
18/07/2019,ARCMIN/00432871,4477.13,0,Consult CRM,Information Technlgy,43103,ICT Maintenance & Support,Revenue
18/07/2019,169568,664,0,Respirex International,OPERATIONS EQUIPMENT,40005,Operational Equ Pch,Revenue
18/07/2019,INV-20013,1055.2,0,Total ID Ltd,COMMAND TRAINING,42100,Stationery,Revenue
18/07/2019,75386,2200,0,Saville Assessment Ltd,TRAINING DELIVERY,19203,Non Uniformed,Revenue
18/07/2019,1009770485,599.55,0,Hays Specialist Recruitment,FINANCE SECTION,15001,Admin - Basic Pay,Revenue
18/07/2019,1009788016,599.55,0,Hays Specialist Recruitment,FINANCE SECTION,15001,Admin - Basic Pay,Revenue
18/07/2019,PTC006092,1400,0,The Princes Trust,YOUNG FIREFIGHTERS,45109,Youth Training Exps,Revenue
18/07/2019,90E/WYF13/1,6350,0,ORH Ltd,STRATEGIC DEVELOPMENT,42511,Consultancy Fees,Revenue
18/07/2019,1019573,3400,0,Bytes Security Partnerships Lt,Information Technlgy,43103,ICT Maintenance & Support,Revenue
18/07/2019,1131766,9000,0,Fireangel Safety Technology Ltd,CORPORATE MANAGEMENT AND SUPPORT,59164,Equipment,Capital
18/07/2019,935858938,1100,0,Arco Group,CORPORATE MANAGEMENT AND SUPPORT,59164,Equipment,Capital
18/07/2019,5585,22798,0,Nviron Limited,CORPORATE MANAGEMENT AND SUPPORT,59166,Computer Costs,Capital
18/07/2019,697405,475,0,Access Uk Ltd,CORPORATE MANAGEMENT AND SUPPORT,59166,Computer Costs,Capital
18/07/2019,1131710,31500,0,Fireangel Safety Technology Ltd,CORPORATE MANAGEMENT AND SUPPORT,59164,Equipment,Capital
18/07/2019,B-21886/2,50950,0,Acorn Analytical Services Ltd,CORPORATE MANAGEMENT AND SUPPORT,59052,Cont-External,Capital
18/07/2019,91312375212,2475,0,Wakefield MDC,CORPORATE MANAGEMENT AND SUPPORT,59059,Fee-Pln/Bldg Reg,Capital
18/07/2019,MC/214,4500,0,Montgomery & Coupers Ltd,PROPERTY,42511,Consultancy Fees,Revenue
18/07/2019,IN50858,479.19,0,BAM FM Limited,MORLEY,21012,Heating & Mechanical,Revenue
18/07/2019,IN50861,539.31,0,BAM FM Limited,NEW CONTROL PROJECT,21012,Heating & Mechanical,Revenue
19/07/2019,27958,2404.85,0,BCS Electrics Ltd,CORPORATE MANAGEMENT AND SUPPORT,59052,Cont-External,Capital
19/07/2019,698113,1425,0,Access Uk Ltd,CORPORATE MANAGEMENT AND SUPPORT,59166,Computer Costs,Capital
19/07/2019,697692,2146.83,0,Access Uk Ltd,CORPORATE MANAGEMENT AND SUPPORT,59166,Computer Costs,Capital
19/07/2019,46338,6650,0,Renzacci UK Plc,CORPORATE MANAGEMENT AND SUPPORT,59052,Cont-External,Capital
19/07/2019,2189,560,0,Hall Lane Recyclers Ltd,HUDDERSFIELD,40025,Scrap Cars Purch,Revenue
19/07/2019,27938,466.3,0,BCS Electrics Ltd,FAIRWEATHER GREEN,21013,Electrical Reps (Fr),Revenue
19/07/2019,PC1426,2500,0,Paterson Consultancy,EMPLOYEE RESOURCING,42511,Consultancy Fees,Revenue
19/07/2019,27893,482.39,0,BCS Electrics Ltd,TRAINING DELIVERY,21013,Electrical Reps (Fr),Revenue
19/07/2019,122620,975,0,WCS Environmental Ltd,Various,20000,Ann Contract/Service,Revenue
19/07/2019,4526,483,0,Concept Print,SUPPLIES SECTION,42000,POSTAGE,Revenue
19/07/2019,27538,650.4,0,Crossley Evans Ltd,TRAINING DELIVERY,28506,Refuse Collect/Disp,Revenue
19/07/2019,27537,696,0,Crossley Evans Ltd,TRAINING DELIVERY,28506,Refuse Collect/Disp,Revenue
22/07/2019,46337,-6850,0,Renzacci UK Plc,CORPORATE MANAGEMENT AND SUPPORT,59052,Cont-External,Capital
22/07/2019,1012,492,0,SJ Facilities,BINGLEY,21014,General Rep & Maint,Revenue
22/07/2019,27540,520.8,0,Crossley Evans Ltd,ODSAL,28506,Refuse Collect/Disp,Revenue
22/07/2019,447352,1774.28,0,OfficeXpress Europe Limited,SUPPLIES SECTION,43106,ICT Consumables,Revenue
22/07/2019,UK-19-0000243,419,0,Jolly Safety Equipment Ltd,TRAINING DELIVERY,41500,Clothing,Revenue
22/07/2019,INV/5469,1050,0,Industrial Door Solutions Limited,HUDDERSFIELD,21006,Appliance Bay Doors,Revenue
22/07/2019,ARBK/00001051,3150,0,Consult CRM,Information Technlgy,43103,ICT Maintenance & Support,Revenue
22/07/2019,9141,1875.51,0,Wharfedale Construction Co Ltd,CORPORATE MANAGEMENT AND SUPPORT,59052,Cont-External,Capital
22/07/2019,46327,6850,0,Renzacci UK Plc,CORPORATE MANAGEMENT AND SUPPORT,59052,Cont-External,Capital
22/07/2019,27920,11591.48,0,BCS Electrics Ltd,CORPORATE MANAGEMENT AND SUPPORT,59052,Cont-External,Capital
22/07/2019,27919,8401.79,0,BCS Electrics Ltd,CORPORATE MANAGEMENT AND SUPPORT,59052,Cont-External,Capital
22/07/2019,MJA01416,2275.75,0,Mja Consultants,CORPORATE MANAGEMENT AND SUPPORT,59052,Cont-External,Capital
22/07/2019,27885,4463.37,0,BCS Electrics Ltd,CORPORATE MANAGEMENT AND SUPPORT,59052,Cont-External,Capital
22/07/2019,9138,2296.91,0,Wharfedale Construction Co Ltd,CORPORATE MANAGEMENT AND SUPPORT,59052,Cont-External,Capital
22/07/2019,MJA01394,13500,0,Mja Consultants,CORPORATE MANAGEMENT AND SUPPORT,59052,Cont-External,Capital
22/07/2019,INV/5503,621.25,0,Industrial Door Solutions Limited,BRADFORD,21006,Appliance Bay Doors,Revenue
22/07/2019,SI-009123,2375.21,0,Origin Fitness,CORPORATE MANAGEMENT AND SUPPORT,59163,Furniture & Fittings,Capital
22/07/2019,14844,4620,0,Fitness Warehouse Ltd t/a Gym Gear,Health & Safety,40022,Gym Equip Repair/Maint,Revenue
22/07/2019,5,500,0,PK Prep Ltd,RECRUITS,40502,Food,Revenue
22/07/2019,91780217,6282.46,0,Vodafone (Mobiles),Information Technlgy,43017,Corporate Mobile Phone,Revenue
22/07/2019,BMC49191,907.05,0,Bradford MDC,HALIFAX,28502,Contract Cleaning,Revenue
23/07/2019,INV003616,4995,0,Lemongrass Consulting,Information Technlgy,43103,ICT Maintenance & Support,Revenue
23/07/2019,25579,1096.57,0,Mitton Aftercare Ltd,South Kirkby,21014,General Rep & Maint,Revenue
23/07/2019,1284102344,645.84,0,EE Ltd (Airtime),South Kirkby Close Call,43018,Wan Rental,Revenue
24/07/2019,108934,2084.11,0,Redfern Travel Ltd,FINANCE SECTION,35000,Public Transport,Revenue
24/07/2019,INV-3262,5540.26,0,Pulse Cashflow Finance,Various,28502,Contract Cleaning,Revenue
24/07/2019,27994,660.58,0,BCS Electrics Ltd,TODMORDEN,27500,"Fixtures, Fittings & Furns-R&M",Revenue
24/07/2019,IN51009,975.1,0,BAM FM Limited,GARFORTH,21012,Heating & Mechanical,Revenue
25/07/2019,27960,2212.7,0,BCS Electrics Ltd,CORPORATE MANAGEMENT AND SUPPORT,59052,Cont-External,Capital
25/07/2019,213,790,0,Montgomery & Coupers Ltd,CORPORATE MANAGEMENT AND SUPPORT,59061,Inst Srv-Commctn,Capital
25/07/2019,7402539874,33567.6,0,Dell Corporation,CORPORATE MANAGEMENT AND SUPPORT,59166,Computer Costs,Capital
25/07/2019,27539,588,0,Crossley Evans Ltd,HALIFAX,21014,General Rep & Maint,Revenue
25/07/2019,B-22438,1250,0,Acorn Analytical Services Ltd,CORPORATE MANAGEMENT AND SUPPORT,59052,Cont-External,Capital
25/07/2019,INV/5530,652,0,Industrial Door Solutions Limited,CORPORATE MANAGEMENT AND SUPPORT,59052,Cont-External,Capital
26/07/2019,984474,800,0,Gritit Ltd,PROPERTY,24000,Grounds Maintenance,Revenue
26/07/2019,1343726,516.44,0,Fcc Recycling (Uk) Limited,HALIFAX,28506,Refuse Collect/Disp,Revenue
26/07/2019,SI-505,696,0,Cafe Perfection,Killingbeck,21013,Electrical Reps (Fr),Revenue
29/07/2019,27968,7707.67,0,BCS Electrics Ltd,TRAINING DELIVERY,21013,Electrical Reps (Fr),Revenue
29/07/2019,INV-1806,1972,0,Robert Whetham Associates,PROPERTY,20002,Contract Management,Revenue
29/07/2019,MJA01426,2800,0,Mja Consultants,NEW CONTROL PROJECT,21013,Electrical Reps (Fr),Revenue
29/07/2019,27992,1136.99,0,BCS Electrics Ltd,HALIFAX,21013,Electrical Reps (Fr),Revenue
29/07/2019,27993,912.47,0,BCS Electrics Ltd,HALIFAX,21014,General Rep & Maint,Revenue
29/07/2019,1018,725,0,Wm Projects Ltd,TRAINING DELIVERY,21014,General Rep & Maint,Revenue
29/07/2019,1014,520,0,Wm Projects Ltd,TRAINING DELIVERY,21014,General Rep & Maint,Revenue
29/07/2019,7000032163,500,0,NHS England,Comah,43500,Subsistence Allowncs,Revenue
29/07/2019,10298343,8930.72,0,Ubm Information Ltd,Information Technlgy,43103,ICT Maintenance & Support,Revenue
29/07/2019,I54497,38000,0,Ice Creates Ltd,Fire Auth Bal Sheet,97028,General Fund - Service Support Reserve,Revenue
29/07/2019,C/01/089567,600.79,0,Bradford Met District Council,KEIGHLEY,28502,Contract Cleaning,Revenue
29/07/2019,C/01/089568,533.99,0,Bradford Met District Council,Shipley New,28502,Contract Cleaning,Revenue
29/07/2019,C/01/089570,533.99,0,Bradford Met District Council,ODSAL,28502,Contract Cleaning,Revenue
29/07/2019,C/01/089571,961.27,0,Bradford Met District Council,FAIRWEATHER GREEN,28502,Contract Cleaning,Revenue
30/07/2019,C/01/089576,533.99,0,Bradford Met District Council,BRADFORD,28502,Contract Cleaning,Revenue
30/07/2019,C/01/089572,1068.07,0,Bradford Met District Council,BRADFORD,28502,Contract Cleaning,Revenue
30/07/2019,12909,420,0,West Yorkshire Windscreens Ltd,FLEET MAINTENANCE,30001,Dir Cost-Spare Parts,Revenue
30/07/2019,12907,1305,0,West Yorkshire Windscreens Ltd,FLEET MAINTENANCE,30001,Dir Cost-Spare Parts,Revenue
30/07/2019,C/01/089614,4058.57,0,Bradford Met District Council,Various,28502,Contract Cleaning,Revenue
30/07/2019,C/02/089689,600.79,0,Bradford Met District Council,KEIGHLEY,28502,Contract Cleaning,Revenue
30/07/2019,C/02/089690,533.99,0,Bradford Met District Council,Shipley New,28502,Contract Cleaning,Revenue
30/07/2019,C/02/089692,533.99,0,Bradford Met District Council,ODSAL,28502,Contract Cleaning,Revenue
30/07/2019,C/02/089693,961.27,0,Bradford Met District Council,FAIRWEATHER GREEN,28502,Contract Cleaning,Revenue
30/07/2019,C/02/089694,1068.07,0,Bradford Met District Council,BRADFORD,28502,Contract Cleaning,Revenue
30/07/2019,C/02/089698,533.99,0,Bradford Met District Council,BRADFORD,28502,Contract Cleaning,Revenue
30/07/2019,C/02/089736,4058.54,0,Bradford Met District Council,Various,28502,Contract Cleaning,Revenue
30/07/2019,IN51122,17831.25,0,BAM FM Limited,PROPERTY,20000,Ann Contract/Service,Revenue
30/07/2019,6218,7300.47,0,Fire Hosetech,OPERATIONS EQUIPMENT,40005,Operational Equ Pch,Revenue
30/07/2019,SIN018541,489.4,0,Dearnleys,PONTEFRACT,21014,General Rep & Maint,Revenue
30/07/2019,52599,2298,0,Speedings Limited,OPERATIONS EQUIPMENT,40005,Operational Equ Pch,Revenue
30/07/2019,10507,1238,0,T Kirk Forestry,National Resilience Distributed Learning,45119,USAR TRAINING,Revenue
30/07/2019,75888,1467,0,Saville Assessment Ltd,EMPLOYMENT SERVICES,42539,Professional Service,Revenue
30/07/2019,2652464,7166.6,0,Bayford Oil,HALIFAX,30200,Vehicle Fuel,Revenue
30/07/2019,13232,1160,0,West Yorkshire Windscreens Ltd,FLEET MANAGEMENT,30004,Rep-Ext Contractors,Revenue
30/07/2019,13231,1725,0,West Yorkshire Windscreens Ltd,FLEET MANAGEMENT,30004,Rep-Ext Contractors,Revenue
31/07/2019,750,2772,0,NWFS,EMPLOYEE RESOURCING,19201,Training Fees,Revenue
31/07/2019,102990,1245,0,CDR Group,Information Technlgy,43103,ICT Maintenance & Support,Revenue
31/07/2019,IN50497,2660.58,0,BAM FM Limited,CORPORATE MANAGEMENT AND SUPPORT,59052,Cont-External,Capital
31/07/2019,1017,10100,0,SJ Facilities,CORPORATE MANAGEMENT AND SUPPORT,59052,Cont-External,Capital
31/07/2019,857-50520,988.4,0,Fast Signs (Leeds) Ltd,CORPORATE MANAGEMENT AND SUPPORT,59052,Cont-External,Capital
31/07/2019,1028,21132.15,0,Wm Projects Ltd,CORPORATE MANAGEMENT AND SUPPORT,59052,Cont-External,Capital
31/07/2019,1026,5150,0,Wm Projects Ltd,CORPORATE MANAGEMENT AND SUPPORT,59052,Cont-External,Capital
31/07/2019,1025,6150,0,Wm Projects Ltd,CORPORATE MANAGEMENT AND SUPPORT,59052,Cont-External,Capital
31/07/2019,1024,5450,0,Wm Projects Ltd,CORPORATE MANAGEMENT AND SUPPORT,59052,Cont-External,Capital
31/07/2019,1023,1650,0,Wm Projects Ltd,CORPORATE MANAGEMENT AND SUPPORT,59052,Cont-External,Capital
31/07/2019,1022,5620,0,Wm Projects Ltd,CORPORATE MANAGEMENT AND SUPPORT,59052,Cont-External,Capital
31/07/2019,6.55659E+14,632.57,0,Yorkshire Water,CORPORATE MANAGEMENT AND SUPPORT,59164,Equipment,Capital
31/07/2019,6.55674E+14,1427.11,0,Yorkshire Water,CORPORATE MANAGEMENT AND SUPPORT,59164,Equipment,Capital
31/07/2019,1625,1700,0,Dk Brown Associates,CORPORATE MANAGEMENT AND SUPPORT,59052,Cont-External,Capital
31/07/2019,1016,830,0,Wm Projects Ltd,CORPORATE MANAGEMENT AND SUPPORT,59052,Cont-External,Capital
31/07/2019,1015,9860,0,Wm Projects Ltd,CORPORATE MANAGEMENT AND SUPPORT,59052,Cont-External,Capital
31/07/2019,1627,2800,0,Dk Brown Associates,CORPORATE MANAGEMENT AND SUPPORT,59058,Fee-External,Capital
31/07/2019,MC/217,790,0,Montgomery & Coupers Ltd,CORPORATE MANAGEMENT AND SUPPORT,59061,Inst Srv-Commctn,Capital
31/07/2019,12944,14500,0,Professional Remediation Ltd,CORPORATE MANAGEMENT AND SUPPORT,59052,Cont-External,Capital
31/07/2019,INV/5695,535,0,Industrial Door Solutions Limited,MYTHOLMROYD,21006,Appliance Bay Doors,Revenue
01/08/2019,1476,-1388.64,0,Mitton Aftercare Ltd,TRAINING DELIVERY,21012,Heating & Mechanical,Revenue
01/08/2019,6,525,0,PK Prep Ltd,RECRUITS,40502,Food,Revenue
01/08/2019,7,500,0,PK Prep Ltd,RECRUITS,40502,Food,Revenue
01/08/2019,8,500,0,PK Prep Ltd,RECRUITS,40502,Food,Revenue
01/08/2019,IN51325,2563.03,0,BAM FM Limited,PONTEFRACT,21012,Heating & Mechanical,Revenue
01/08/2019,23188,1388.64,0,Mitton Aftercare Ltd,TRAINING DELIVERY,21012,Heating & Mechanical,Revenue
01/08/2019,3570234,443.19,0,CCS Media Ltd,SUPPLIES SECTION,43106,ICT Consumables,Revenue
01/08/2019,984473,1318.73,0,Gritit Ltd,VARIOUS,24000,Grounds Maintenance,Revenue
02/08/2019,984475,1240,0,Gritit Ltd,VARIOUS,24000,Grounds Maintenance,Revenue
02/08/2019,INV-3261,4460.61,0,Pulse Cashflow Finance,VARIOUS,28502,Contract Cleaning,Revenue
02/08/2019,INV-3327,8668,0,Pulse Cashflow Finance,VARIOUS,28502,Contract Cleaning,Revenue
02/08/2019,2191,1037.99,0,Trafficlear Ltd,FLEET MANAGEMENT,34002,Vhcle Leas Misc Exp,Revenue
02/08/2019,INV/26652,2460,0,DFP Services Limited,VARIOUS,20000,Ann Contract/Service,Revenue
02/08/2019,74,3200,0,Michael Wood Management Consultancy,FINANCE SECTION,42511,Consultancy Fees,Revenue
02/08/2019,43388,467.11,0,Mitton Aftercare Ltd,TRAINING DELIVERY,21012,Heating & Mechanical,Revenue
02/08/2019,43483,815.29,0,Union Industries,OPERATIONS EQUIPMENT,40005,Operational Equ Pch,Revenue
02/08/2019,2641195,2529.25,0,Bayford Oil,LEEDS,30200,Vehicle Fuel,Revenue
02/08/2019,2021654,900,0,Cleanbright (Leeds) Ltd,PROPERTY,28500,Window Cleaning,Revenue
02/08/2019,IN50566,478.12,0,BAM FM Limited,BRADFORD,21012,Heating & Mechanical,Revenue
02/08/2019,2240,1169.51,0,Trafficlear Ltd,FLEET MANAGEMENT,34002,Vhcle Leas Misc Exp,Revenue
02/08/2019,372,647.23,0,Silkwood Property Management Co Ltd,Ossett New,24000,Grounds Maintenance,Revenue
02/08/2019,INV/27284,1548,0,DFP Services Limited,CASTLEFORD,21013,Electrical Reps (Fr),Revenue
02/08/2019,28072,619.7,0,BCS Electrics Ltd,CORPORATE MANAGEMENT AND SUPPORT,59052,Cont-External,Capital
02/08/2019,C/HT181580,4342.5,0,Civica UK Ltd,CORPORATE MANAGEMENT AND SUPPORT,59166,Computer Costs,Capital
02/08/2019,1021,3740,0,Wm Projects Ltd,CORPORATE MANAGEMENT AND SUPPORT,59052,Cont-External,Capital
02/08/2019,1019,2050,0,Wm Projects Ltd,CORPORATE MANAGEMENT AND SUPPORT,59052,Cont-External,Capital
02/08/2019,935916081,1844.04,0,Arco Group,CORPORATE MANAGEMENT AND SUPPORT,59164,Equipment,Capital
02/08/2019,C/03/089811,600.79,0,Bradford Met District Council,KEIGHLEY,28502,Contract Cleaning,Revenue
02/08/2019,696872,950,0,Access Uk Ltd,CORPORATE MANAGEMENT AND SUPPORT,59166,Computer Costs,Capital
02/08/2019,701841,950,0,Access Uk Ltd,CORPORATE MANAGEMENT AND SUPPORT,59166,Computer Costs,Capital
02/08/2019,701043,4275,0,Access Uk Ltd,CORPORATE MANAGEMENT AND SUPPORT,59166,Computer Costs,Capital
02/08/2019,700987,1900,0,Access Uk Ltd,CORPORATE MANAGEMENT AND SUPPORT,59166,Computer Costs,Capital
02/08/2019,700936,1425,0,Access Uk Ltd,CORPORATE MANAGEMENT AND SUPPORT,59166,Computer Costs,Capital
02/08/2019,700908,1088.6,0,Access Uk Ltd,CORPORATE MANAGEMENT AND SUPPORT,59166,Computer Costs,Capital
02/08/2019,C/03/089812,533.99,0,Bradford Met District Council,Shipley New,28502,Contract Cleaning,Revenue
02/08/2019,C/03/089814,533.99,0,Bradford Met District Council,ODSAL,28502,Contract Cleaning,Revenue
02/08/2019,C/03/089858,4058.54,0,Bradford Met District Council,HALIFAX,28502,Contract Cleaning,Revenue
02/08/2019,C/03/089816,1068.07,0,Bradford Met District Council,BRADFORD,28502,Contract Cleaning,Revenue
02/08/2019,C/03/089820,533.99,0,Bradford Met District Council,BRADFORD,28502,Contract Cleaning,Revenue
02/08/2019,MJA01430,460,0,Mja Consultants,ROTHWELL,21013,Electrical Reps (Fr),Revenue
02/08/2019,C/03/089815,961.27,0,Bradford Met District Council,FAIRWEATHER GREEN,28502,Contract Cleaning,Revenue
02/08/2019,142925,3880,0,Physio Med Ltd,Health & Safety,18301,Specialists Fees,Revenue
02/08/2019,1017,2400,0,Wm Projects Ltd,PROPERTY,21014,General Rep & Maint,Revenue
02/08/2019,IN033232,6820,0,Airbus Defence & Space Ltd,Information Technlgy,43103,ICT Maintenance & Support,Revenue
05/08/2019,8604961178,1195.6,0,Kirklees Council,PROPERTY,28506,Refuse Collect/Disp,Revenue
05/08/2019,8604961149,1065.8,0,Kirklees Council,PROPERTY,28506,Refuse Collect/Disp,Revenue
05/08/2019,C/04/089938,1068.07,0,Bradford Council,BRADFORD,28502,Contract Cleaning,Revenue
05/08/2019,C/04/089942,533.99,0,Bradford Council,BRADFORD,28502,Contract Cleaning,Revenue
05/08/2019,MC/218,2209,0,Montgomery & Coupers Ltd,PROPERTY,42511,Consultancy Fees,Revenue
06/08/2019,640,-4431.02,0,South Yorks Fire & Rescue,EMERGENCY SERV COMMS PROGRAMME REGIONAL,10301,Control Staff - Basic Pay,Revenue
06/08/2019,28182,-894.2,0,BCS Electrics Ltd,STANNINGLEY,21013,Electrical Reps (Fr),Revenue
06/08/2019,IN51509,719.06,0,BAM FM Limited,HUNSLET,21012,Heating & Mechanical,Revenue
06/08/2019,INV-0997,1884,0,Legal Experience Training Ltd,TRAINING DELIVERY,19208,Fire Safy Crses-Extl,Revenue
06/08/2019,CN19896182,1416.24,0,Cannon Hygiene Limited,BINGLEY,20000,Ann Contract/Service,Revenue
06/08/2019,B-23196,825,0,Acorn Analytical Services Ltd,HUDDERSFIELD,21007,Asbestos/Hazard Mats,Revenue
06/08/2019,9546,5560,0,Ioda Limited,CORPORATE DIVERSITY,19235,Emp Svc Tng,Revenue
06/08/2019,2201,1135.54,0,Trafficlear Ltd,FLEET MANAGEMENT,34002,Vhcle Leas Misc Exp,Revenue
06/08/2019,12992,5986.67,0,South Yorks Fire & Rescue,EMERGENCY SERV COMMS PROGRAMME REGIONAL,10301,Control Staff - Basic Pay,Revenue
06/08/2019,2214,1169.51,0,Trafficlear Ltd,FLEET MANAGEMENT,34002,Vhcle Leas Misc Exp,Revenue
06/08/2019,2221,1169.51,0,Trafficlear Ltd,FLEET MANAGEMENT,34002,Vhcle Leas Misc Exp,Revenue
06/08/2019,2227,1169.51,0,Trafficlear Ltd,FLEET MANAGEMENT,34002,Vhcle Leas Misc Exp,Revenue
06/08/2019,MJA01433,27273,0,Mja Consultants,CORPORATE MANAGEMENT AND SUPPORT,59052,Cont-External,Capital
06/08/2019,2237,1169.51,0,Trafficlear Ltd,FLEET MANAGEMENT,34002,Vhcle Leas Misc Exp,Revenue
06/08/2019,28042,894.2,0,BCS Electrics Ltd,STANNINGLEY,21013,Electrical Reps (Fr),Revenue
06/08/2019,MC/219,790,0,Montgomery & Coupers Ltd,CORPORATE MANAGEMENT AND SUPPORT,59061,Inst Srv-Commctn,Capital
06/08/2019,1020,5312,0,Wm Projects Ltd,CORPORATE MANAGEMENT AND SUPPORT,59052,Cont-External,Capital
06/08/2019,1027,7550,0,Wm Projects Ltd,CORPORATE MANAGEMENT AND SUPPORT,59052,Cont-External,Capital
06/08/2019,MC/216,987.5,0,Montgomery & Coupers Ltd,CORPORATE MANAGEMENT AND SUPPORT,59061,Inst Srv-Commctn,Capital
07/08/2019,60090,-2076.63,0,Access Uk Ltd,ICT Strategy,43037,HR & Rostering,Revenue
07/08/2019,1025,9495,0,SJ Facilities,CORPORATE MANAGEMENT AND SUPPORT,59052,Cont-External,Capital
07/08/2019,91599745,2670,0,Serco Ltd,TRAINING DELIVERY,19241,Service Supp Tng,Revenue
07/08/2019,B9582,903.32,0,Wilkes Vending Services Ltd,TRAINING DELIVERY,40502,Food,Revenue
07/08/2019,2206,1203.48,0,Trafficlear Ltd,FLEET MANAGEMENT,34002,Vhcle Leas Misc Exp,Revenue
07/08/2019,2216,1169.51,0,Trafficlear Ltd,FLEET MANAGEMENT,34002,Vhcle Leas Misc Exp,Revenue
07/08/2019,2215,1169.51,0,Trafficlear Ltd,FLEET MANAGEMENT,34002,Vhcle Leas Misc Exp,Revenue
07/08/2019,2228,1169.51,0,Trafficlear Ltd,FLEET MANAGEMENT,34002,Vhcle Leas Misc Exp,Revenue
07/08/2019,441359,1519.43,0,B B N Fastnet,VARIOUS,40005,Operational Equ Pch,Revenue
07/08/2019,SI-374,4853.15,0,Cafe Perfection,VARIOUS,20000,Ann Contract/Service,Revenue
07/08/2019,INV-21054,833.29,0,Liverpool Power Boats Ltd,OPERATIONS EQUIPMENT,40005,Operational Equ Pch,Revenue
07/08/2019,SN3084744,541.44,0,Berendsen UK Ltd t/a Elis,SUPPLIES SECTION,41900,Laundry,Revenue
07/08/2019,0940000048-080C,443.97,0,Airwave Solutions Ltd,Information Technlgy,43026,Radio Licensing,Revenue
07/08/2019,0940000048-080D,1293.56,0,Airwave Solutions Ltd,Information Technlgy,43026,Radio Licensing,Revenue
07/08/2019,1029,510,0,SJ Facilities,TRAINING DELIVERY,21014,General Rep & Maint,Revenue
07/08/2019,1525205-01,1036.02,0,Crossroads Truck & Bus Ltd,FLEET MAINTENANCE,30001,Dir Cost-Spare Parts,Revenue
07/08/2019,701324,36687.13,0,Access Uk Ltd,ICT Strategy,43037,HR & Rostering,Revenue
07/08/2019,701323,4929.53,0,Access Uk Ltd,Information Technlgy,43037,HR & Rostering,Revenue
07/08/2019,1525404-01,760.2,0,Crossroads Truck & Bus Ltd,FLEET MAINTENANCE,30102,Dir Cost-Oil & Lubes,Revenue
07/08/2019,9145,1837.04,0,Wharfedale Construction Co Ltd,CORPORATE MANAGEMENT AND SUPPORT,59052,Cont-External,Capital
07/08/2019,2524029,58040.01,0,Home Office,OPERATIONS,43026,Radio Licensing,Revenue
07/08/2019,EC20186279,428.65,0,Kcom,Information Technlgy,43018,Wan Rental,Revenue
07/08/2019,ARCV289805,1056,0,Alliance Automotive UK CV Ltd T/a,FLEET MAINTENANCE,30001,Dir Cost-Spare Parts,Revenue
08/08/2019,52656,3226,0,Speedings Limited,OPERATIONS EQUIPMENT,40005,Operational Equ Pch,Revenue
08/08/2019,E2011430887,3254.32,0,Allstar Business Solutions Ltd,VARIOUS,30200,Vehicle Fuel,Revenue
08/08/2019,2664494,3890.44,0,Bayford Oil,HUNSLET,30200,Vehicle Fuel,Revenue
08/08/2019,2683726,3063.54,0,Bayford Oil,BRADFORD,30200,Vehicle Fuel,Revenue
08/08/2019,14119024,500.66,0,Corona Energy,CASTLEFORD,25001,Energy-Gas,Revenue
08/08/2019,14119037,555.52,0,Corona Energy,TRAINING DELIVERY,25001,Energy-Gas,Revenue
08/08/2019,14119020,640.25,0,Corona Energy,KEIGHLEY,25001,Energy-Gas,Revenue
08/08/2019,14118947,655.22,0,Corona Energy,PROPERTY,25001,Energy-Gas,Revenue
08/08/2019,14119002,675.7,0,Corona Energy,Slaithwaite,25001,Energy-Gas,Revenue
08/08/2019,14118962,729.41,0,Corona Energy,COOKRIDGE,25001,Energy-Gas,Revenue
08/08/2019,14118940,772.6,0,Corona Energy,Cleckheaton,25001,Energy-Gas,Revenue
08/08/2019,14118976,779.83,0,Corona Energy,RAWDON,25001,Energy-Gas,Revenue
08/08/2019,14118983,860.33,0,Corona Energy,LEEDS,25001,Energy-Gas,Revenue
08/08/2019,IN1191200043083,16062.86,0,GTT Communications,VARIOUS,43018,Wan Rental,Revenue
08/08/2019,IN50857,1209.92,0,BAM FM Limited,CASTLEFORD,21012,Heating & Mechanical,Revenue
08/08/2019,14317/9,4000.5,0,Rance Booth & Smith Architects,PROPERTY,42511,Consultancy Fees,Revenue
08/08/2019,Jul-19,4140,0,Dr N A L Smith (Medical Services) L,Health & Safety,18301,Specialists Fees,Revenue
08/08/2019,SIN551872,2492,0,AXA PPP Healthcare,Health & Safety,18301,Specialists Fees,Revenue
08/08/2019,23841,5650,0,Thornley & Lumb Partnership Ltd,PROPERTY,42511,Consultancy Fees,Revenue
08/08/2019,N PETERS,500,0,K M D'Arcy Brown T/a Oriel Consulti,Health & Safety,18301,Specialists Fees,Revenue
08/08/2019,CSI00349,60179.99,0,Marshall Building Contractors,CORPORATE MANAGEMENT AND SUPPORT,59052,Cont-External,Capital
08/08/2019,28136,4784.84,0,BCS Electrics Ltd,CORPORATE MANAGEMENT AND SUPPORT,59052,Cont-External,Capital
08/08/2019,14118967,424.25,0,Corona Energy,ILLINGWORTH,25001,Energy-Gas,Revenue
08/08/2019,14119053,450.84,0,Corona Energy,TRAINING DELIVERY,25001,Energy-Gas,Revenue
08/08/2019,14119051,1148.7,0,Corona Energy,BRADFORD,25001,Energy-Gas,Revenue
08/08/2019,28135,3426.11,0,BCS Electrics Ltd,FLEET MAINTENANCE,21013,Electrical Reps (Fr),Revenue
08/08/2019,37271,1308.14,0,Supply +,FLEET MAINTENANCE,30001,Dir Cost-Spare Parts,Revenue
09/08/2019,1525403-01,-159642,0,Crossroads Truck & Bus Ltd,FLEET MAINTENANCE,30102,Dir Cost-Oil & Lubes,Revenue
09/08/2019,1525222-01,-870.88,0,Crossroads Truck & Bus Ltd,FLEET MAINTENANCE,30001,Dir Cost-Spare Parts,Revenue
09/08/2019,1525379-01,159642,0,Crossroads Truck & Bus Ltd,FLEET MAINTENANCE,30102,Dir Cost-Oil & Lubes,Revenue
09/08/2019,2667,1699.95,0,K2 Mechanical & Electrical Services,CORPORATE MANAGEMENT AND SUPPORT,59052,Cont-External,Capital
09/08/2019,1525233-01,870.88,0,Crossroads Truck & Bus Ltd,FLEET MAINTENANCE,30001,Dir Cost-Spare Parts,Revenue
09/08/2019,28137,1008.72,0,BCS Electrics Ltd,CORPORATE MANAGEMENT AND SUPPORT,59052,Cont-External,Capital
09/08/2019,MC/215,1125,0,Montgomery & Coupers Ltd,PROPERTY,42511,Consultancy Fees,Revenue
12/08/2019,B-22733,450,0,Acorn Analytical Services Ltd,CORPORATE MANAGEMENT AND SUPPORT,59052,Cont-External,Capital
12/08/2019,IN49633,17831.25,0,BAM FM Limited,PROPERTY,20000,Ann Contract/Service,Revenue
12/08/2019,IN50360,17831.25,0,BAM FM Limited,PROPERTY,20000,Ann Contract/Service,Revenue
12/08/2019,MC/221,730,0,Montgomery & Coupers Ltd,PROPERTY,42511,Consultancy Fees,Revenue
12/08/2019,27586,921.6,0,Crossley Evans Ltd,TRAINING DELIVERY,28506,Refuse Collect/Disp,Revenue
12/08/2019,C/04/089933,600.79,0,Bradford Council,KEIGHLEY,28502,Contract Cleaning,Revenue
12/08/2019,C/04/089934,533.99,0,Bradford Council,Shipley New,28502,Contract Cleaning,Revenue
12/08/2019,C/04/089936,533.99,0,Bradford Council,ODSAL,28502,Contract Cleaning,Revenue
12/08/2019,C/04/089937,961.27,0,Bradford Council,FAIRWEATHER GREEN,28502,Contract Cleaning,Revenue
12/08/2019,C/04/089980,4058.54,0,Bradford Council,VARIOUS,28502,Contract Cleaning,Revenue
12/08/2019,IN51716,462.64,0,BAM FM Limited,GARFORTH,21009,Plumbing Facilities,Revenue
12/08/2019,98421A,3146.92,0,Townley Network Solutions Ltd,VARIOUS,43015,Landlines Call Charges,Revenue
12/08/2019,CN19948116,1416.41,0,Cannon Hygiene Limited,VARIOUS,20000,Ann Contract/Service,Revenue
12/08/2019,SLM/00001125,690,0,Kirklees College,TRAINING DELIVERY,19203,Non Uniformed,Revenue
12/08/2019,26640,957.6,0,Crossley Evans Ltd,Slaithwaite,21014,General Rep & Maint,Revenue
13/08/2019,194491,800,0,Angus Heron Limited,GARFORTH,24000,Grounds Maintenance,Revenue
13/08/2019,I0022129,3806,0,Merseyside Fire & Rescue Authority,TRAINING DELIVERY,19238,Ops Res Tng,Revenue
13/08/2019,INV132158,1226.67,0,Awesome Merchandise,CORPORATE DIVERSITY,40221,Publty/Promtn/Media,Revenue
13/08/2019,SI207683,702,0,Dale Power Solutions Ltd,PROPERTY,21013,Electrical Reps (Fr),Revenue
13/08/2019,9150,46758.66,0,Wharfedale Construction Co Ltd,CORPORATE MANAGEMENT AND SUPPORT,59052,Cont-External,Capital
13/08/2019,3232,7737.55,0,Karl Austerfield Roofing Ltd,CORPORATE MANAGEMENT AND SUPPORT,59052,Cont-External,Capital
13/08/2019,27587,595.2,0,Crossley Evans Ltd,OPERATIONS EQUIPMENT,40005,Operational Equ Pch,Revenue
13/08/2019,2004,420,0,Hall Lane Recyclers Ltd,Dewsbury New,40025,Scrap Cars Purch,Revenue
14/08/2019,SIN018642,453.96,0,Dearnleys,PROPERTY,21014,General Rep & Maint,Revenue
14/08/2019,7605959,667.14,0,Chubb Fire Ltd,OPERATIONS EQUIPMENT,40005,Operational Equ Pch,Revenue
14/08/2019,1036,2940,0,SJ Facilities,TRAINING DELIVERY,21014,General Rep & Maint,Revenue
14/08/2019,45792,1800,0,Leeds Pallet Co.Ltd.,TRAINING DELIVERY,40006,Training Equ Purch,Revenue
14/08/2019,MC/223,3900,0,Montgomery & Coupers Ltd,VARIOUS,20000,Ann Contract/Service,Revenue
14/08/2019,19002372,868.85,0,Godiva Ltd,FLEET MAINTENANCE,30001,Dir Cost-Spare Parts,Revenue
14/08/2019,MRI8991991,21192.6,1882.37,Lex Autolease,VARIOUS,34001,Vehicle Leasing,Revenue
14/08/2019,1009813264,599.55,0,Hays Specialist Recruitment,FINANCE SECTION,15001,Admin - Basic Pay,Revenue
14/08/2019,1009831488,599.55,0,Hays Specialist Recruitment,FINANCE SECTION,15001,Admin - Basic Pay,Revenue
15/08/2019,2252,560,0,Hall Lane Recyclers Ltd,ODSAL,40025,Scrap Cars Purch,Revenue
15/08/2019,2740414,3084.86,0,Bayford Oil,HUDDERSFIELD,30200,Vehicle Fuel,Revenue
15/08/2019,2720203,5153.44,0,Bayford Oil,LEEDS,30200,Vehicle Fuel,Revenue
15/08/2019,MRI8858509,49960.08,0,Lex Autolease,FLEET MANAGEMENT,34001,Vehicle Leasing,Revenue
15/08/2019,INV116577,483.34,0,Bells Domestics,VARIOUS,40006,Training Equ Purch,Revenue
15/08/2019,2910173923,500,0,Draeger Ltd,OPERATIONS EQUIPMENT,40005,Operational Equ Pch,Revenue
15/08/2019,MRI8847536,13323.6,0,Lex Autolease,FLEET MANAGEMENT,34001,Vehicle Leasing,Revenue
15/08/2019,9552,750,0,Ioda Limited,EMPLOYEE RESOURCING,42511,Consultancy Fees,Revenue
15/08/2019,2593,864,0,Jt Services Group,PROPERTY,21014,General Rep & Maint,Revenue
15/08/2019,51549792,600,0,Mitsubishi Electric Europe B.V,VARIOUS,20000,Ann Contract/Service,Revenue
15/08/2019,3671,3500,0,Red Bullet,VARIOUS,40221,Publty/Promtn/Media,Revenue
15/08/2019,89000084411,2000,0,West Yorkshire Pension Fund,FINANCE SECTION,40205,Book/Publications,Revenue
15/08/2019,LGWCXW7Z,3720.69,0,Npower Ltd,STANNINGLEY,25000,Energy-Electric,Revenue
15/08/2019,89769,802.34,0,Wilkes Vending Services Ltd,TRAINING DELIVERY,40502,Food,Revenue
15/08/2019,LGWCXW7Y,1892.85,0,Npower Ltd,Cleckheaton,25000,Energy-Electric,Revenue
15/08/2019,LGWCXW7X,1506.05,0,Npower Ltd,CASTLEFORD,25000,Energy-Electric,Revenue
15/08/2019,LGWCXW7W,2365.7,0,Npower Ltd,HUNSLET,25000,Energy-Electric,Revenue
15/08/2019,7131/05226928,595,0,Brammer Buck & Hickman,OPERATIONS EQUIPMENT,40005,Operational Equ Pch,Revenue
15/08/2019,14203738,506.53,0,Corona Energy,COOKRIDGE,25001,Energy-Gas,Revenue
15/08/2019,LGWCXW7V,3653.83,0,Npower Ltd,HUDDERSFIELD,25000,Energy-Electric,Revenue
15/08/2019,14203854,710.85,0,Corona Energy,BRADFORD,25001,Energy-Gas,Revenue
15/08/2019,28167,1641.78,0,BCS Electrics Ltd,TRAINING DELIVERY,21013,Electrical Reps (Fr),Revenue
15/08/2019,14119017,1600.63,0,Corona Energy,WAKEFIELD,25001,Energy-Gas,Revenue
15/08/2019,LGWCXW7T,1311.62,0,Npower Ltd,WETHERBY,25000,Energy-Electric,Revenue
15/08/2019,439530,1000.13,0,B B N Fastnet,VARIOUS,30002,Consumables-Veh Rep,Revenue
15/08/2019,706502,950,0,Access Uk Ltd,CORPORATE MANAGEMENT AND SUPPORT,59166,Computer Costs,Capital
15/08/2019,707006,950,0,Access Uk Ltd,CORPORATE MANAGEMENT AND SUPPORT,59166,Computer Costs,Capital
15/08/2019,6.50006E+14,632.57,0,Yorkshire Water,CORPORATE MANAGEMENT AND SUPPORT,59164,Equipment,Capital
15/08/2019,INV-2012,1020,0,2H Architecture Limited,CORPORATE MANAGEMENT AND SUPPORT,59058,Fee-External,Capital
15/08/2019,6.50006E+14,1457.91,0,Yorkshire Water,CORPORATE MANAGEMENT AND SUPPORT,59164,Equipment,Capital
15/08/2019,LGWCXW7S,2331.16,0,Npower Ltd,WAKEFIELD,25000,Energy-Electric,Revenue
15/08/2019,LGWCXW7R,1395.31,0,Npower Ltd,Slaithwaite,25000,Energy-Electric,Revenue
15/08/2019,LGWCXW7Q,646.23,0,Npower Ltd,Skelmanthorpe,25000,Energy-Electric,Revenue
15/08/2019,27589,441.6,0,Crossley Evans Ltd,WATER OFFICE,40027,Hydrants Repair,Revenue
15/08/2019,71358,3725,0,Oakbase Intergrated Marketing Ltd,PUBLIC INFORMATION,40221,Publty/Promtn/Media,Revenue
15/08/2019,PI402480,498.67,0,Safety-Kleen Uk Ltd,FLEET MAINTENANCE,30002,Consumables-Veh Rep,Revenue
16/08/2019,1026,736,0,SJ Facilities,TRAINING DELIVERY,21014,General Rep & Maint,Revenue
16/08/2019,PAYL3 ALEVY04,34051,0,HMRC Cumbernauld,EMPLOYEE RESOURCING,19202,Apprentice Tng,Revenue
16/08/2019,14203759,696.18,0,Corona Energy,RAWDON,25001,Energy-Gas,Revenue
16/08/2019,LGWCXW7M,903.85,0,Npower Ltd,MORLEY,25000,Energy-Electric,Revenue
16/08/2019,28162,555.89,0,BCS Electrics Ltd,Holmfirth,21013,Electrical Reps (Fr),Revenue
16/08/2019,LGWCXW7L,1504.75,0,Npower Ltd,MOORTOWN,25000,Energy-Electric,Revenue
16/08/2019,LGWCXW7K,1458.85,0,Npower Ltd,MIRFIELD,25000,Energy-Electric,Revenue
16/08/2019,14203812,536.07,0,Corona Energy,KEIGHLEY,25001,Energy-Gas,Revenue
16/08/2019,6.50005E+14,1457.91,0,Yorkshire Water,CORPORATE MANAGEMENT AND SUPPORT,59164,Equipment,Capital
16/08/2019,6.50006E+14,632.57,0,Yorkshire Water,CORPORATE MANAGEMENT AND SUPPORT,59164,Equipment,Capital
16/08/2019,6.50004E+14,632.57,0,Yorkshire Water,CORPORATE MANAGEMENT AND SUPPORT,59164,Equipment,Capital
16/08/2019,65000597000000X,978.97,0,Yorkshire Water,CORPORATE MANAGEMENT AND SUPPORT,59164,Equipment,Capital
16/08/2019,6.50004E+14,632.57,0,Yorkshire Water,CORPORATE MANAGEMENT AND SUPPORT,59164,Equipment,Capital
16/08/2019,INV-1831,2437.5,0,Robert Whetham Associates,CORPORATE MANAGEMENT AND SUPPORT,59058,Fee-External,Capital
16/08/2019,LGWCXW7H,690.46,0,Npower Ltd,Holmfirth,25000,Energy-Electric,Revenue
16/08/2019,LGWCXW7G,972.06,0,Npower Ltd,FEATHERSTONE,25000,Energy-Electric,Revenue
16/08/2019,14203834,439.18,0,Corona Energy,TRAINING DELIVERY,25001,Energy-Gas,Revenue
16/08/2019,LGWCXW7F,1870.49,0,Npower Ltd,FAIRWEATHER GREEN,25000,Energy-Electric,Revenue
16/08/2019,INV-4183,2720,0,Inspectas Compliance Ltd,VARIOUS,20000,Ann Contract/Service,Revenue
16/08/2019,14203839,573.95,0,Corona Energy,NEW CONTROL PROJECT,25001,Energy-Gas,Revenue
16/08/2019,14203907,1235.89,0,Corona Energy,PROPERTY,25001,Energy-Gas,Revenue
16/08/2019,966,549.75,0,Wm Projects Ltd,HALIFAX,21014,General Rep & Maint,Revenue
16/08/2019,50985,1170,0,Wt Partnership,COOKRIDGE,42511,Consultancy Fees,Revenue
16/08/2019,13,728,0,D.V Optical (Openshaw Opticians),Health & Safety,18301,Specialists Fees,Revenue
16/08/2019,B-23405,475,0,Acorn Analytical Services Ltd,WAKEFIELD,21007,Asbestos/Hazard Mats,Revenue
19/08/2019,49278,857.6,0,Ask,SUPPLIES SECTION,42100,Stationery,Revenue
19/08/2019,50065,1391.13,0,Ask,SUPPLIES SECTION,41900,Laundry,Revenue
19/08/2019,51230,1160.81,0,Ask,SUPPLIES SECTION,42100,Stationery,Revenue
19/08/2019,3168249,3793.26,0,Bristol Uniforms Ltd,TRAINING DELIVERY,41500,Clothing,Revenue
19/08/2019,3168248,1859.34,0,Bristol Uniforms Ltd,SUPPLIES SECTION,41500,Clothing,Revenue
19/08/2019,INV/5754,516,0,Industrial Door Solutions Limited,CASTLEFORD,21006,Appliance Bay Doors,Revenue
19/08/2019,SI208656,468,0,Dale Power Solutions Ltd,NEW CONTROL PROJECT,21013,Electrical Reps (Fr),Revenue
19/08/2019,7131/05264562,446.68,0,Brammer Buck & Hickman,WATER OFFICE,40005,Operational Equ Pch,Revenue
19/08/2019,500929G,1304.62,0,Arena Group Limited,CORPORATE SERVICES,42201,Photocopier Charges,Revenue
19/08/2019,709875,950,0,Access Uk Ltd,CORPORATE MANAGEMENT AND SUPPORT,59166,Computer Costs,Capital
19/08/2019,709707,1425,0,Access Uk Ltd,CORPORATE MANAGEMENT AND SUPPORT,59166,Computer Costs,Capital
19/08/2019,28198,1918.43,0,BCS Electrics Ltd,CORPORATE MANAGEMENT AND SUPPORT,59052,Cont-External,Capital
19/08/2019,28197,3478.15,0,BCS Electrics Ltd,CORPORATE MANAGEMENT AND SUPPORT,59052,Cont-External,Capital
19/08/2019,28183,894.2,0,BCS Electrics Ltd,CORPORATE MANAGEMENT AND SUPPORT,59052,Cont-External,Capital
19/08/2019,9148,8556.9,0,Wharfedale Construction Co Ltd,CORPORATE MANAGEMENT AND SUPPORT,59052,Cont-External,Capital
19/08/2019,50984,1170,0,Wt Partnership,CORPORATE MANAGEMENT AND SUPPORT,59058,Fee-External,Capital
19/08/2019,ND39898,1274,0,Vodafone (Mobiles),,43106,ICT Consumables,Revenue
19/08/2019,190066,880,0,Co-Star Electronic Co Ltd,FLEET MANAGEMENT,43027,Mob Phone Installtn,Revenue
19/08/2019,23659,557.5,0,Emergency One (Uk) Ltd,FLEET MAINTENANCE,30001,Dir Cost-Spare Parts,Revenue
19/08/2019,13240,650,0,West Yorkshire Windscreens Ltd,FLEET MANAGEMENT,30004,Rep-Ext Contractors,Revenue
19/08/2019,816701,1190,0,Fire Service College Limited,USAR,40017,USAR,Revenue
19/08/2019,9573,750,0,Ioda Limited,EMPLOYEE RESOURCING,42511,Consultancy Fees,Revenue
20/08/2019,11252,-1095,0,Rosenbauer UK PLC,OPERATIONS EQUIPMENT,40005,Operational Equ Pch,Revenue
20/08/2019,6179447,750,0,Ricardo-Aea Limited,TRAINING DELIVERY,19238,Ops Res Tng,Revenue
20/08/2019,900095202,7589.05,0,Leeds City Council,OTLEY,26000,Rates & Council Tax,Revenue
20/08/2019,901600061,71568,0,Leeds City Council,Killingbeck,26000,Rates & Council Tax,Revenue
20/08/2019,90009515X,32007.21,0,Leeds City Council,ROTHWELL,26000,Rates & Council Tax,Revenue
20/08/2019,900094341,14852.75,0,Leeds City Council,MORLEY,26000,Rates & Council Tax,Revenue
20/08/2019,900094350,61488,0,Leeds City Council,LEEDS,26000,Rates & Council Tax,Revenue
20/08/2019,900094397,31500,0,Leeds City Council,HUNSLET,26000,Rates & Council Tax,Revenue
20/08/2019,900131669,26460,0,Leeds City Council,COOKRIDGE,26000,Rates & Council Tax,Revenue
20/08/2019,900094421,32508,0,Leeds City Council,NEW CONTROL PROJECT,26000,Rates & Council Tax,Revenue
20/08/2019,90009444X,20008.25,0,Leeds City Council,MOORTOWN,26000,Rates & Council Tax,Revenue
20/08/2019,900094403,72576,0,Leeds City Council,STANNINGLEY,26000,Rates & Council Tax,Revenue
20/08/2019,6.50006E+14,978.97,0,Yorkshire Water,CORPORATE MANAGEMENT AND SUPPORT,59164,Equipment,Capital
20/08/2019,900094332,22586,0,Leeds City Council,RAWDON,26000,Rates & Council Tax,Revenue
20/08/2019,900095178,11661.25,0,Leeds City Council,WETHERBY,26000,Rates & Council Tax,Revenue
20/08/2019,900095196,27468,0,Leeds City Council,GARFORTH,26000,Rates & Council Tax,Revenue
20/08/2019,30536200,23077,0,Bradford Met District Council,BINGLEY,26000,Rates & Council Tax,Revenue
20/08/2019,30273110,22831.5,0,Bradford Met District Council,ODSAL,26000,Rates & Council Tax,Revenue
20/08/2019,30139821,24550,0,Bradford Met District Council,KEIGHLEY,26000,Rates & Council Tax,Revenue
20/08/2019,30321913,8880.79,0,Bradford Met District Council,ILKLEY,26000,Rates & Council Tax,Revenue
20/08/2019,30482364,7487.75,0,Bradford Met District Council,SILSDEN,26000,Rates & Council Tax,Revenue
20/08/2019,30397782,35280,0,Bradford Met District Council,FAIRWEATHER GREEN,26000,Rates & Council Tax,Revenue
20/08/2019,31114644,65016,0,Bradford Met District Council,BRADFORD,26000,Rates & Council Tax,Revenue
20/08/2019,33584150,58464,0,Bradford Met District Council,Shipley New,26000,Rates & Council Tax,Revenue
20/08/2019,11144,1095,0,Rosenbauer UK PLC,OPERATIONS EQUIPMENT,40005,Operational Equ Pch,Revenue
20/08/2019,963178542,7266.1,0,Kirklees Council,Meltham,26000,Rates & Council Tax,Revenue
20/08/2019,96320144X,10065.5,0,Kirklees Council,MIRFIELD,26000,Rates & Council Tax,Revenue
20/08/2019,11434,3392.7,0,Rosenbauer UK PLC,VARIOUS,40005,Operational Equ Pch,Revenue
20/08/2019,963222726,8234.91,0,Kirklees Council,Holmfirth,26000,Rates & Council Tax,Revenue
20/08/2019,963223721,7911.98,0,Kirklees Council,Skelmanthorpe,26000,Rates & Council Tax,Revenue
20/08/2019,11457,5468.24,0,Rosenbauer UK PLC,SUPPLIES SECTION,41500,Clothing,Revenue
20/08/2019,11480,606.75,0,Rosenbauer UK PLC,SUPPLIES SECTION,41500,Clothing,Revenue
20/08/2019,963227536,13379.75,0,Kirklees Council,Slaithwaite,26000,Rates & Council Tax,Revenue
20/08/2019,963227705,22586,0,Kirklees Council,Cleckheaton,26000,Rates & Council Tax,Revenue
20/08/2019,96916184X,70560,0,Kirklees Council,Dewsbury New,26000,Rates & Council Tax,Revenue
20/08/2019,969175615,2357.45,0,Kirklees Council,Holmfirth,26000,Rates & Council Tax,Revenue
20/08/2019,963243842,38304,0,Kirklees Council,HUDDERSFIELD,26000,Rates & Council Tax,Revenue
20/08/2019,29306006,3822.83,0,M I Supplies Ltd,SUPPLIES SECTION,Various,Various,Revenue
20/08/2019,1009874299,599.55,0,Hays Specialist Recruitment,FINANCE SECTION,15001,Admin - Basic Pay,Revenue
20/08/2019,1009854821,599.55,0,Hays Specialist Recruitment,FINANCE SECTION,15001,Admin - Basic Pay,Revenue
20/08/2019,14203765,643.21,0,Corona Energy,LEEDS,25001,Energy-Gas,Revenue
20/08/2019,2742787,3082.8,0,Bayford Oil,MOORTOWN,30200,Vehicle Fuel,Revenue
20/08/2019,14203808,1121.08,0,Corona Energy,WAKEFIELD,25001,Energy-Gas,Revenue
20/08/2019,2.5202E+13,7487.75,0,Calderdale Met Borough Council,MYTHOLMROYD,26000,Rates & Council Tax,Revenue
21/08/2019,2157720108/01/29,62496,0,Wakefield MDC,PONTEFRACT,26000,Rates & Council Tax,Revenue
21/08/2019,3380090008/01/29,59472,0,Wakefield MDC,Ossett New,26000,Rates & Council Tax,Revenue
21/08/2019,2600575408/01/29,28224,0,Wakefield MDC,CASTLEFORD,26000,Rates & Council Tax,Revenue
21/08/2019,4.72221E+12,1309.43,0,Wakefield MDC,NORMN CLOSE CALL HSE,26000,Rates & Council Tax,Revenue
21/08/2019,1050110108/01/29,41076,0,Wakefield MDC,South Kirkby,26000,Rates & Council Tax,Revenue
21/08/2019,2491105918/02/29,38808,0,Wakefield MDC,WAKEFIELD,26000,Rates & Council Tax,Revenue
21/08/2019,2201103528/01/29,13202.31,0,Wakefield MDC,FEATHERSTONE,26000,Rates & Council Tax,Revenue
21/08/2019,MLCR085078,-1069.86,0,Lex Autolease,FLEET MANAGEMENT,34001,Vehicle Leasing,Revenue
21/08/2019,MLCR085010,-1264.74,0,Lex Autolease,FLEET MANAGEMENT,34001,Vehicle Leasing,Revenue
21/08/2019,MLCR085084,-2579.35,0,Lex Autolease,FLEET MANAGEMENT,34001,Vehicle Leasing,Revenue
21/08/2019,MLCR085080,-1459.55,0,Lex Autolease,FLEET MANAGEMENT,34001,Vehicle Leasing,Revenue
21/08/2019,MLCR085161,-2412.55,0,Lex Autolease,FLEET MANAGEMENT,34001,Vehicle Leasing,Revenue
21/08/2019,MLCR085160,-2446.98,0,Lex Autolease,FLEET MANAGEMENT,34001,Vehicle Leasing,Revenue
21/08/2019,MSCR448805,-2432.73,0,Lex Autolease,FLEET MANAGEMENT,34001,Vehicle Leasing,Revenue
21/08/2019,1816890-01,-2496.9,0,Crossroads Truck & Bus Ltd,FLEET MAINTENANCE,30001,Dir Cost-Spare Parts,Revenue
21/08/2019,2520199016547X,17062.25,0,Calderdale Met Borough Council,TODMORDEN,26000,Rates & Council Tax,Revenue
21/08/2019,2.5202E+13,38304,0,Calderdale Met Borough Council,Rastrick,26000,Rates & Council Tax,Revenue
21/08/2019,2.5202E+13,17553.25,0,Calderdale Met Borough Council,ILLINGWORTH,26000,Rates & Council Tax,Revenue
21/08/2019,963287182,131040,0,Kirklees Council,PROPERTY,26000,Rates & Council Tax,Revenue
21/08/2019,968784494,22780.8,0,Kirklees Council,TRAINING DELIVERY,26000,Rates & Council Tax,Revenue
21/08/2019,968859565,9954,0,Kirklees Council,PROPERTY,26000,Rates & Council Tax,Revenue
21/08/2019,SIN1011472,8384.73,0,PPL PRS Ltd,FIRE LEGAL,42587,Legal Expenses,Revenue
21/08/2019,MRI8806094,29151.7,1552.85,Lex Autolease,EMPLOYMENT SERVICES,34001,Vehicle Leasing,Revenue
21/08/2019,INV-4172,6985,0,Inspectas Compliance Ltd,VARIOUS,20000,Ann Contract/Service,Revenue
21/08/2019,1524176-01,1875.96,0,Crossroads Truck & Bus Ltd,FLEET MANAGEMENT,30006,Ins Claims Excess,Revenue
21/08/2019,16546,538,0,Heavy Woollen Textile Co Ltd,SUPPLIES SECTION,Various,Various,Revenue
21/08/2019,19002598,799.88,0,Godiva Ltd,FLEET MAINTENANCE,30001,Dir Cost-Spare Parts,Revenue
21/08/2019,1525936-01,2965.8,0,Crossroads Truck & Bus Ltd,FLEET MAINTENANCE,30001,Dir Cost-Spare Parts,Revenue
21/08/2019,2049471,897.65,0,Giffard Newton & Sons Ltd,SUPPLIES SECTION,41500,Clothing,Revenue
21/08/2019,MLIN085085,588.2,46.71,Lex Autolease,OPERATIONS TEAM,34001,Vehicle Leasing,Revenue
21/08/2019,MC/224,1656.75,0,Montgomery & Coupers Ltd,PROPERTY,42511,Consultancy Fees,Revenue
21/08/2019,1525998-01,494.3,0,Crossroads Truck & Bus Ltd,FLEET MAINTENANCE,30001,Dir Cost-Spare Parts,Revenue
21/08/2019,SI-550,482.49,0,Cafe Perfection,FAIRWEATHER GREEN,21013,Electrical Reps (Fr),Revenue
21/08/2019,48037,1150.29,0,Ask,SUPPLIES SECTION,42100,Stationery,Revenue
21/08/2019,1525573-01,518.34,0,Crossroads Truck & Bus Ltd,FLEET MANAGEMENT,30006,Ins Claims Excess,Revenue
21/08/2019,2725399908/01/29,44856,0,Wakefield MDC,NORMANTON,26000,Rates & Council Tax,Revenue
21/08/2019,14119047,457.49,0,Corona Energy,TODMORDEN,25001,Energy-Gas,Revenue
21/08/2019,28539,8166.34,0,Cristie Data Ltd,Information Technlgy,43103,ICT Maintenance & Support,Revenue
22/08/2019,2.5202E+13,42988.32,0,Calderdale Met Borough Council,HALIFAX,26000,Rates & Council Tax,Revenue
22/08/2019,20-R1287,2091.5,0,Weber Rescue Uk Ltd,OPERATIONS EQUIPMENT,40005,Operational Equ Pch,Revenue
22/08/2019,23834,672.72,0,Emergency One (Uk) Ltd,FLEET MANAGEMENT,30004,Rep-Ext Contractors,Revenue
22/08/2019,23835,1673.5,0,Emergency One (Uk) Ltd,FLEET MANAGEMENT,30004,Rep-Ext Contractors,Revenue
22/08/2019,23837,733.7,0,Emergency One (Uk) Ltd,FLEET MANAGEMENT,30004,Rep-Ext Contractors,Revenue
22/08/2019,710316,1900,0,Access Uk Ltd,CORPORATE MANAGEMENT AND SUPPORT,59166,Computer Costs,Capital
22/08/2019,51036,2628,0,Wt Partnership,CORPORATE MANAGEMENT AND SUPPORT,59058,Fee-External,Capital
22/08/2019,23839,707.15,0,Emergency One (Uk) Ltd,FLEET MANAGEMENT,30004,Rep-Ext Contractors,Revenue
22/08/2019,23836,981,0,Emergency One (Uk) Ltd,FLEET MAINTENANCE,30001,Dir Cost-Spare Parts,Revenue
22/08/2019,23838,606.5,0,Emergency One (Uk) Ltd,FLEET MANAGEMENT,30004,Rep-Ext Contractors,Revenue
22/08/2019,147245,5093.35,0,Southcombe Brothers Ltd,SUPPLIES SECTION,41500,Clothing,Revenue
22/08/2019,177736,4560.6,0,Cmt Flexibles Ltd,OPERATIONS EQUIPMENT,40005,Operational Equ Pch,Revenue
22/08/2019,E2011484099,3297.15,0,Allstar Business Solutions Ltd,VARIOUS,30200,Vehicle Fuel,Revenue
22/08/2019,2761715,4122.8,0,Bayford Oil,STANNINGLEY,30200,Vehicle Fuel,Revenue
22/08/2019,19002664,527.15,0,Godiva Ltd,FLEET MAINTENANCE,30001,Dir Cost-Spare Parts,Revenue
22/08/2019,GT2019-041,27200,0,Gartan Technologies Ltd,CORPORATE MANAGEMENT AND SUPPORT,59166,Computer Costs,Capital
22/08/2019,7402547480,21823.7,0,Dell Corporation,CORPORATE MANAGEMENT AND SUPPORT,59166,Computer Costs,Capital
22/08/2019,2760156,2576.75,0,Bayford Oil,LEEDS,30200,Vehicle Fuel,Revenue
22/08/2019,23842,4666.12,0,Emergency One (Uk) Ltd,FLEET MANAGEMENT,30004,Rep-Ext Contractors,Revenue
22/08/2019,IRIN660185,4778.76,434.97,Lex Autolease,STRATEGIC DEVELOPMENT,34001,Vehicle Leasing,Revenue
23/08/2019,70122104,-868.83,0,Yorkshire Water,CORPORATE MANAGEMENT AND SUPPORT,59164,Equipment,Capital
23/08/2019,1526231-01,1037.12,0,Crossroads Truck & Bus Ltd,FLEET MAINTENANCE,30001,Dir Cost-Spare Parts,Revenue
23/08/2019,IRIN659618,6309,0,Lex Autolease,FLEET MANAGEMENT,34001,Vehicle Leasing,Revenue
23/08/2019,EXI1304771,718.03,65.32,Lex Autolease,VARIOUS,34001,Vehicle Leasing,Revenue
23/08/2019,EXI1305475,472.15,0,Lex Autolease,FLEET MANAGEMENT,34001,Vehicle Leasing,Revenue
23/08/2019,EXI1307754,1088.88,91.3,Lex Autolease,VARIOUS,34001,Vehicle Leasing,Revenue
23/08/2019,109253,1760.51,0,Redfern Travel Ltd,FINANCE SECTION,35000,Public Transport,Revenue
23/08/2019,INV-1821,1972,0,Robert Whetham Associates,PROPERTY,20002,Contract Management,Revenue
23/08/2019,6.55535E+14,868.83,0,Yorkshire Water,CORPORATE MANAGEMENT AND SUPPORT,59164,Equipment,Capital
23/08/2019,INV-1833,1054.5,0,Robert Whetham Associates,CORPORATE MANAGEMENT AND SUPPORT,59058,Fee-External,Capital
23/08/2019,710680,1425,0,Access Uk Ltd,CORPORATE MANAGEMENT AND SUPPORT,59166,Computer Costs,Capital
27/08/2019,89016050,1720,0,Npower Yorkshire Ltd,VARIOUS,20000,Ann Contract/Service,Revenue
27/08/2019,MJA01443,2820,0,Mja Consultants,VARIOUS,20000,Ann Contract/Service,Revenue
27/08/2019,9,500,0,PK Prep Ltd,RECRUITS,40502,Food,Revenue
27/08/2019,10,500,0,PK Prep Ltd,RECRUITS,40502,Food,Revenue
27/08/2019,27478029,633.42,0,M I Supplies Ltd,SUPPLIES SECTION,28501,Cleaning Consumables,Revenue
27/08/2019,89021929,440,0,Npower Yorkshire Ltd,PROPERTY,20000,Ann Contract/Service,Revenue
27/08/2019,89016051,1720,0,Npower Ltd,VARIOUS,20000,Ann Contract/Service,Revenue
27/08/2019,INV-3263,909.49,0,Pulse Cashflow Finance,PONTEFRACT,28502,Contract Cleaning,Revenue
27/08/2019,LGWCT8TN,1071.9,0,Npower Ltd,LEEDS,25000,Energy-Electric,Revenue
27/08/2019,LGWCT8TM,793.51,0,Npower Ltd,ROTHWELL,25000,Energy-Electric,Revenue
27/08/2019,LGWCT8TL,463.6,0,Npower Ltd,NORMANTON,25000,Energy-Electric,Revenue
27/08/2019,LGWCT8TK,840.4,0,Npower Ltd,PONTEFRACT,25000,Energy-Electric,Revenue
27/08/2019,LGWCT8TJ,1606.38,0,Npower Ltd,BRADFORD,25000,Energy-Electric,Revenue
27/08/2019,LGWCT8TH,4270.5,0,Npower Ltd,NEW CONTROL PROJECT,25000,Energy-Electric,Revenue
27/08/2019,LGWCT8TG,630.18,0,Npower Ltd,Shipley New,25000,Energy-Electric,Revenue
27/08/2019,LGWCT8TF,1008.59,0,Npower Ltd,Killingbeck,25000,Energy-Electric,Revenue
27/08/2019,LGWCT8TD,772.9,0,Npower Ltd,Dewsbury New,25000,Energy-Electric,Revenue
27/08/2019,LGWCT8TC,829.3,0,Npower Ltd,Rastrick,25000,Energy-Electric,Revenue
27/08/2019,LGWCT8TB,8014.73,0,Npower Ltd,PROPERTY,25000,Energy-Electric,Revenue
27/08/2019,MC/227,1125,0,Montgomery & Coupers Ltd,PROPERTY,42511,Consultancy Fees,Revenue
27/08/2019,1539,670,0,Pisces Pumps Ltd,PROPERTY,20000,Ann Contract/Service,Revenue
27/08/2019,1306122,1500.01,0,Blackboard International B.V.,VARIOUS,43007,Landline Calls,Revenue
27/08/2019,52403954,535,0,Volvo Group Uk Ltd,Information Technlgy,43103,ICT Maintenance & Support,Revenue
27/08/2019,EXI1306289,435.55,36.52,Lex Autolease,VARIOUS,34001,Vehicle Leasing,Revenue
27/08/2019,INV-4044,4460.61,0,Pulse Cashflow Finance,VARIOUS,28502,Contract Cleaning,Revenue
27/08/2019,INV-4045,5540.26,0,Pulse Cashflow Finance,CASTLEFORD,28502,Contract Cleaning,Revenue
27/08/2019,INV-4099,909.49,0,Pulse Cashflow Finance,PONTEFRACT,28502,Contract Cleaning,Revenue
27/08/2019,IN52221,17831.25,0,BAM FM Limited,PROPERTY,20000,Ann Contract/Service,Revenue
28/08/2019,MLCR085559,-843,0,Lex Autolease,FLEET MANAGEMENT,34001,Vehicle Leasing,Revenue
28/08/2019,MLCR085511,-489.18,-25.99,Lex Autolease,FLEET MANAGEMENT,34001,Vehicle Leasing,Revenue
28/08/2019,28245,1839.6,0,BCS Electrics Ltd,COOKRIDGE,21013,Electrical Reps (Fr),Revenue
28/08/2019,INV-4098,8668,0,Pulse Cashflow Finance,VARIOUS,28502,Contract Cleaning,Revenue
28/08/2019,PI421159,498.67,0,Safety-Kleen Uk Ltd,FLEET MAINTENANCE,30002,Consumables-Veh Rep,Revenue
28/08/2019,1526523-01,980,0,Crossroads Truck & Bus Ltd,FLEET MAINTENANCE,30001,Dir Cost-Spare Parts,Revenue
28/08/2019,EXI1307049,1512.02,0,Lex Autolease,FLEET MANAGEMENT,30001,Dir Cost-Spare Parts,Revenue
28/08/2019,MJA01444,9389.22,0,Mja Consultants,BINGLEY,20000,Ann Contract/Service,Revenue
28/08/2019,75,3200,0,Michael Wood Management Consultancy,FINANCE SECTION,42511,Consultancy Fees,Revenue
28/08/2019,2376,2825,0,Lk Management Ltd,CORPORATE MANAGEMENT AND SUPPORT,59058,Fee-External,Capital
28/08/2019,2732096,3082.8,0,Bayford Oil,Dewsbury New,30200,Vehicle Fuel,Revenue
28/08/2019,1284464340,580.4,0,EE Ltd (Airtime),VARIOUS,43017,Corporate Mobile Phone,Revenue
28/08/2019,IN 27063,832,0,Gremedia Screenprint Ltd,SUPPLIES SECTION,41500,Clothing,Revenue
28/08/2019,IN 27068,2005.2,0,Gremedia Screenprint Ltd,WATER OFFICE,40027,Hydrants Repair,Revenue
28/08/2019,54583,660.88,0,Microform Academic Publishers,SUPPLIES SECTION,42100,Stationery,Revenue
28/08/2019,3053838650,1631.93,0,British Oxygen Co Ltd,VARIOUS,40005,Operational Equ Pch,Revenue
28/08/2019,52404291,535,0,Volvo Group Uk Ltd,Information Technlgy,43103,ICT Maintenance & Support,Revenue
28/08/2019,INV-0000002569,1747.2,0,Event Equipment Hire,RECRUITS,40100,Furniture,Revenue
29/08/2019,MLCR085646,-601.98,-38.87,Lex Autolease,OPERATIONS TEAM,34001,Vehicle Leasing,Revenue
29/08/2019,ARS/10674614,655,0,Snap-On Diagnostics,FLEET MAINTENANCE,30005,Workshop Equipment,Revenue
29/08/2019,5002272,825.5,0,Refreshment Systems Ltd,TRAINING DELIVERY,40502,Food,Revenue
29/08/2019,99395A,3191.92,0,Townley Network Solutions Ltd,VARIOUS,43015,Landlines Call Charges,Revenue
29/08/2019,37424,7606.04,0,Supply +,OPERATIONS EQUIPMENT,40005,Operational Equ Pch,Revenue
29/08/2019,P0027901,960,0,Healthwork Ltd,Health & Safety,18301,Specialists Fees,Revenue
29/08/2019,1526747-01,430.18,0,Crossroads Truck & Bus Ltd,FLEET MAINTENANCE,30001,Dir Cost-Spare Parts,Revenue
29/08/2019,1920123,1520,0,Pepperdog Design Ltd,PUBLIC INFORMATION,40221,Publty/Promtn/Media,Revenue
29/08/2019,1920124,500,0,Pepperdog Design Ltd,PUBLIC INFORMATION,40221,Publty/Promtn/Media,Revenue
29/08/2019,IN19093251,500,0,Calderdale Met Borough Council,PUBLIC INFORMATION,40221,Publty/Promtn/Media,Revenue
29/08/2019,3008,662.75,0,Quality Research Training & Reports,Fire Safety Prot,42587,Legal Expenses,Revenue
29/08/2019,SI-136742,1453.9,0,Medtree,OPERATIONS EQUIPMENT,40005,Operational Equ Pch,Revenue
29/08/2019,15164,705,0,Fitness Warehouse Ltd t/a Gym Gear,Health & Safety,40022,Gym Equip Repair/Maint,Revenue
29/08/2019,OP/I847501,1659.2,0,Phoenix Software Ltd,Information Technlgy,43103,ICT Maintenance & Support,Revenue
29/08/2019,92052834,6506.15,0,Vodafone (Mobiles),Information Technlgy,43017,Corporate Mobile Phone,Revenue
29/08/2019,13034,1362.46,0,South Yorks Fire & Rescue,TRAINING DELIVERY,19241,Service Supp Tng,Revenue
29/08/2019,I0022126,1036,0,Merseyside Fire & Rescue Authority,USAR,40017,USAR,Revenue
29/08/2019,126556,4710,0,WCS Environmental Ltd,PROPERTY,20000,Ann Contract/Service,Revenue
29/08/2019,37409,2624.9,0,Supply +,TRAINING DELIVERY,19243,Tech Svcs Tng,Revenue
30/08/2019,1723,-485.74,0,Mitton Aftercare Ltd,MORLEY,21012,Heating & Mechanical,Revenue
30/08/2019,2807007,4585.5,0,Bayford Oil,FAIRWEATHER GREEN,30200,Vehicle Fuel,Revenue
30/08/2019,37410,2624.9,0,Supply +,TRAINING DELIVERY,19243,Tech Svcs Tng,Revenue
30/08/2019,MC/228,1656.75,0,Montgomery & Coupers Ltd,PROPERTY,42511,Consultancy Fees,Revenue
30/08/2019,2808281,3057,0,Bayford Oil,BRADFORD,30200,Vehicle Fuel,Revenue
30/08/2019,2821762,4076,0,Bayford Oil,Shipley New,30200,Vehicle Fuel,Revenue
30/08/2019,SS139,500,0,D Ellis Services,PROPERTY,24000,Grounds Maintenance,Revenue
30/08/2019,0940000048-081C,1293.56,0,Airwave Solutions Ltd,Information Technlgy,43026,Radio Licensing,Revenue
30/08/2019,0940000048-081B,443.97,0,Airwave Solutions Ltd,Information Technlgy,43026,Radio Licensing,Revenue
30/08/2019,59693,634.99,0,Frequency 3G Telecom Ltd,Information Technlgy,43022,ICT Spares & Repairs,Revenue
30/08/2019,2827839,3427.92,0,Bayford Oil,Killingbeck,30200,Vehicle Fuel,Revenue
30/08/2019,3553,1014,0,Bahson Colour Print Ltd,Fire Safety Prev,40221,Publty/Promtn/Media,Revenue
30/08/2019,126390,20250,0,WCS Environmental Ltd,VARIOUS,20000,Ann Contract/Service,Revenue
30/08/2019,13251,1885,0,West Yorkshire Windscreens Ltd,FLEET MANAGEMENT,30004,Rep-Ext Contractors,Revenue
30/08/2019,2789967,3110.67,0,Bayford Oil,PONTEFRACT,30200,Vehicle Fuel,Revenue
30/08/2019,CSL18056,1200,0,Chief Fire Officers Assoc,Health & Safety,43501,Conference Expenses,Revenue
30/08/2019,8135,7000,0,Performance Monitoring Sys Ltd,Information Technlgy,43103,ICT Maintenance & Support,Revenue
30/08/2019,16104,485.74,0,Mitton Aftercare Ltd,MORLEY,21012,Heating & Mechanical,Revenue
30/08/2019,3029,3080,0,Aire Valley Tree Services Ltd,CASTLEFORD,24000,Grounds Maintenance,Revenue
30/08/2019,SI207134,596.3,0,Dale Power Solutions Ltd,HALIFAX,21013,Electrical Reps (Fr),Revenue
30/08/2019,MJA01455,1433.5,0,Mja Consultants,TRAINING DELIVERY,21013,Electrical Reps (Fr),Revenue
30/08/2019,28282,3221.8,0,BCS Electrics Ltd,TRAINING DELIVERY,21014,General Rep & Maint,Revenue
30/08/2019,28283,4170.1,0,BCS Electrics Ltd,TRAINING DELIVERY,21014,General Rep & Maint,Revenue
02/09/2019,CN-INV-943430,-1090,0,Gritit Ltd,BRADFORD,24000,Grounds Maintenance,Revenue
02/09/2019,28281,957.00,0,BCS Electrics Ltd,TRAINING DELIVERY,21013,Electrical Reps (Fr),Revenue
02/09/2019,28280,"15,856.36",0,BCS Electrics Ltd,TRAINING DELIVERY,21014,General Rep & Maint,Revenue
02/09/2019,MJA01445,500.00,0,Mja Consultants,PROPERTY,21013,Electrical Reps (Fr),Revenue
02/09/2019,6.50014E+14,697.57,0,Yorkshire Water,CORPORATE MANAGEMENT AND SUPPORT,59164,Equipment,Capital
02/09/2019,6.50014E+14,"1,731.99",0,Yorkshire Water,CORPORATE MANAGEMENT AND SUPPORT,59164,Equipment,Capital
02/09/2019,6.50005E+14,632.57,0,Yorkshire Water,CORPORATE MANAGEMENT AND SUPPORT,59164,Equipment,Capital
02/09/2019,6.50014E+14,697.57,0,Yorkshire Water,CORPORATE MANAGEMENT AND SUPPORT,59164,Equipment,Capital
02/09/2019,6.50006E+14,978.97,0,Yorkshire Water,CORPORATE MANAGEMENT AND SUPPORT,59164,Equipment,Capital
02/09/2019,6.50014E+14,662.74,0,Yorkshire Water,CORPORATE MANAGEMENT AND SUPPORT,59164,Equipment,Capital
02/09/2019,6.50014E+14,"1,502.91",0,Yorkshire Water,CORPORATE MANAGEMENT AND SUPPORT,59164,Equipment,Capital
02/09/2019,6.50014E+14,697.57,0,Yorkshire Water,CORPORATE MANAGEMENT AND SUPPORT,59164,Equipment,Capital
02/09/2019,6.50014E+14,697.57,0,Yorkshire Water,CORPORATE MANAGEMENT AND SUPPORT,59164,Equipment,Capital
02/09/2019,6.50014E+14,842.57,0,Yorkshire Water,CORPORATE MANAGEMENT AND SUPPORT,59164,Equipment,Capital
02/09/2019,6.50014E+14,"1,521.91",0,Yorkshire Water,CORPORATE MANAGEMENT AND SUPPORT,59164,Equipment,Capital
02/09/2019,MC/229,"2,370.00",0,Montgomery & Coupers Ltd,CORPORATE MANAGEMENT AND SUPPORT,59061,Inst Srv-Commctn,Capital
02/09/2019,712033,475.00,0,Access Uk Ltd,CORPORATE MANAGEMENT AND SUPPORT,59166,Computer Costs,Capital
02/09/2019,712099,"1,091.45",0,Access Uk Ltd,CORPORATE MANAGEMENT AND SUPPORT,59166,Computer Costs,Capital
02/09/2019,9153,"1,361.05",0,Wharfedale Construction Co Ltd,CORPORATE MANAGEMENT AND SUPPORT,59052,Cont-External,Capital
02/09/2019,9152,"11,658.13",0,Wharfedale Construction Co Ltd,CORPORATE MANAGEMENT AND SUPPORT,59052,Cont-External,Capital
02/09/2019,INV-943336,800.00,0,Gritit Ltd,PROPERTY,24000,Grounds Maintenance,Revenue
02/09/2019,INV-943460,"1,090.00",0,Gritit Ltd,BRADFORD,24000,Grounds Maintenance,Revenue
02/09/2019,INV-943343,"1,240.00",0,Gritit Ltd,Various,24000,Grounds Maintenance,Revenue
02/09/2019,INV-943344,"1,318.74",0,Gritit Ltd,Various,24000,Grounds Maintenance,Revenue
02/09/2019,INV-943430,"1,090.00",0,Gritit Ltd,BRADFORD,24000,Grounds Maintenance,Revenue
03/09/2019,9157,"55,561.86",0,Wharfedale Construction Co Ltd,CORPORATE MANAGEMENT AND SUPPORT,59052,Cont-External,Capital
03/09/2019,6.50014E+14,619.21,0,Yorkshire Water,CORPORATE MANAGEMENT AND SUPPORT,59164,Equipment,Capital
03/09/2019,28273,"5,989.74",0,BCS Electrics Ltd,CORPORATE MANAGEMENT AND SUPPORT,59052,Cont-External,Capital
03/09/2019,6.50006E+14,"1,457.91",0,Yorkshire Water,CORPORATE MANAGEMENT AND SUPPORT,59164,Equipment,Capital
03/09/2019,6.50006E+14,978.97,0,Yorkshire Water,CORPORATE MANAGEMENT AND SUPPORT,59164,Equipment,Capital
03/09/2019,IN19094123,"1,359.39",0,Calderdale Met Borough Council,HALIFAX,21014,General Rep & Maint,Revenue
03/09/2019,548,"1,375.00",0,Rogue Robot Ltd,PUBLIC INFORMATION,40221,Publty/Promtn/Media,Revenue
03/09/2019,2832638,"3,089.70",0,Bayford Oil,Cleckheaton,30200,Vehicle Fuel,Revenue
03/09/2019,1284795754,659.03,0,EE Ltd (Airtime),Various,43017,Corporate Mobile Phone,Revenue
03/09/2019,9586,"2,085.00",0,Ioda Limited,CORPORATE DIVERSITY,19235,Emp Svc Tng,Revenue
03/09/2019,76,"3,200.00",0,Michael Wood Management Consultancy,FINANCE SECTION,42511,Consultancy Fees,Revenue
04/09/2019,EXI1295361,"1,088.88",91.30,Lex Autolease,FLEET MANAGEMENT,34001,Vehicle Leasing,Revenue
04/09/2019,LGWC6Y9T,-3720.69,0,Npower Ltd,STANNINGLEY,25000,Energy-Electric,Revenue
04/09/2019,1033,480.00,0,SJ Facilities,MORLEY,21014,General Rep & Maint,Revenue
04/09/2019,7402551695,"1,667.50",0,Dell Corporation,Information Technlgy,43022,ICT Spares & Repairs,Revenue
04/09/2019,247638,"1,011.71",0,Pneumatic Components Limited,FLEET MAINTENANCE,30002,Consumables-Veh Rep,Revenue
04/09/2019,INV204750,"2,291.00",0,Datanet,Information Technlgy,43022,ICT Spares & Repairs,Revenue
04/09/2019,MLIN085343,"2,432.72",0,Lex Autolease,FLEET MANAGEMENT,34001,Vehicle Leasing,Revenue
04/09/2019,711585,"1,425.00",0,Access Uk Ltd,CORPORATE MANAGEMENT AND SUPPORT,59166,Computer Costs,Capital
04/09/2019,642574,985.00,0,Kendon Packaging Group Plc,OPERATIONS EQUIPMENT,40005,Operational Equ Pch,Revenue
04/09/2019,LGWC67FD,"3,761.08",0,Npower Ltd,STANNINGLEY,25000,Energy-Electric,Revenue
04/09/2019,143498,"4,153.00",0,Physio Med Ltd,Health & Safety,18301,Specialists Fees,Revenue
04/09/2019,LGWC67FJ,"1,182.16",0,Npower Ltd,COOKRIDGE,25000,Energy-Electric,Revenue
04/09/2019,LGWC67FG,"3,361.68",0,Npower Ltd,HALIFAX,25000,Energy-Electric,Revenue
04/09/2019,LGWC78YL,483.02,0,Npower Ltd,NORMANTON,25000,Energy-Electric,Revenue
04/09/2019,LGWC75M5,"1,105.38",0,Npower Ltd,LEEDS,25000,Energy-Electric,Revenue
04/09/2019,LGWC75M4,832.46,0,Npower Ltd,ROTHWELL,25000,Energy-Electric,Revenue
04/09/2019,LGWC75M2,"1,771.59",0,Npower Ltd,BRADFORD,25000,Energy-Electric,Revenue
04/09/2019,LGWC75MY,650.69,0,Npower Ltd,Shipley New,25000,Energy-Electric,Revenue
04/09/2019,LGWC75MZ,"4,686.25",0,Npower Ltd,NEW CONTROL PROJECT,25000,Energy-Electric,Revenue
04/09/2019,LGWC75MX,989.39,0,Npower Ltd,Killingbeck,25000,Energy-Electric,Revenue
04/09/2019,LGWC75MW,812.76,0,Npower Ltd,Dewsbury New,25000,Energy-Electric,Revenue
04/09/2019,C/HT182853,"5,400.00",0,Civica UK Ltd,FLEET MANAGEMENT,30004,Rep-Ext Contractors,Revenue
04/09/2019,23840,499.65,0,Emergency One (Uk) Ltd,FLEET MANAGEMENT,30004,Rep-Ext Contractors,Revenue
04/09/2019,23841,753.10,0,Emergency One (Uk) Ltd,FLEET MANAGEMENT,30004,Rep-Ext Contractors,Revenue
04/09/2019,23950,"2,744.26",0,Emergency One (Uk) Ltd,FLEET MANAGEMENT,30004,Rep-Ext Contractors,Revenue
04/09/2019,LGWC75MV,858.91,0,Npower Ltd,Rastrick,25000,Energy-Electric,Revenue
04/09/2019,LGWC75MT,"8,506.12",0,Npower Ltd,PROPERTY,25000,Energy-Electric,Revenue
04/09/2019,2526867,"58,040.01",0,Home Office,OPERATIONS,43026,Radio Licensing,Revenue
04/09/2019,LGWC75M3,915.78,0,Npower Ltd,PONTEFRACT,25000,Energy-Electric,Revenue
04/09/2019,714910,"1,566.00",0,Access Uk Ltd,CORPORATE MANAGEMENT AND SUPPORT,59166,Computer Costs,Capital
04/09/2019,714487,"1,064.00",0,Access Uk Ltd,CORPORATE MANAGEMENT AND SUPPORT,59166,Computer Costs,Capital
04/09/2019,6.50006E+14,978.97,0,Yorkshire Water,CORPORATE MANAGEMENT AND SUPPORT,59164,Equipment,Capital
04/09/2019,6.50006E+14,978.97,0,Yorkshire Water,CORPORATE MANAGEMENT AND SUPPORT,59164,Equipment,Capital
04/09/2019,6.50006E+14,978.97,0,Yorkshire Water,CORPORATE MANAGEMENT AND SUPPORT,59164,Equipment,Capital
04/09/2019,7402553351,"6,028.00",0,Dell Corporation,CORPORATE MANAGEMENT AND SUPPORT,59166,Computer Costs,Capital
04/09/2019,6.50015E+14,"1,492.11",0,Yorkshire Water,CORPORATE MANAGEMENT AND SUPPORT,59164,Equipment,Capital
04/09/2019,EXI1318880,"2,226.14",0,Lex Autolease,FLEET MANAGEMENT,34001,Vehicle Leasing,Revenue
04/09/2019,65001488000000X,696.57,0,Yorkshire Water,CORPORATE MANAGEMENT AND SUPPORT,59164,Equipment,Capital
04/09/2019,14848,"1,737.50",0,Bradshaw Gass & Hope Llp,CORPORATE MANAGEMENT AND SUPPORT,59058,Fee-External,Capital
04/09/2019,14118986,"1,295.76",0,Corona Energy,HALIFAX,25001,Energy-Gas,Revenue
04/09/2019,14203770,943.89,0,Corona Energy,HALIFAX,25001,Energy-Gas,Revenue
05/09/2019,BC-07-19-S2207,"12,461.54",0,Bristol Care,SUPPLIES SECTION,41900,Laundry,Revenue
05/09/2019,SV0028624,"4,153.00",0,Computer Aided Development Corporat,Information Technlgy,43103,ICT Maintenance & Support,Revenue
05/09/2019,0710787/WSH/103,"4,079.15",0,Pelican Engineering Co (Sales),FLEET MANAGEMENT,30004,Rep-Ext Contractors,Revenue
05/09/2019,0712315/WSH/103,"1,226.89",0,Pelican Engineering Co (Sales),FLEET MANAGEMENT,30004,Rep-Ext Contractors,Revenue
05/09/2019,INV02773,"6,146.00",0,3Tc Software Ltd,Information Technlgy,43103,ICT Maintenance & Support,Revenue
05/09/2019,1527174-01,501.33,0,Crossroads Truck & Bus Ltd,FLEET MAINTENANCE,30001,Dir Cost-Spare Parts,Revenue
05/09/2019,IN19095476,"13,208.94",0,Calderdale Met Borough Council,HALIFAX,26000,Rates & Council Tax,Revenue
05/09/2019,1526902-01,472.41,0,Crossroads Truck & Bus Ltd,FLEET MAINTENANCE,30001,Dir Cost-Spare Parts,Revenue
05/09/2019,3240,817.95,0,Karl Austerfield Roofing Ltd,CORPORATE MANAGEMENT AND SUPPORT,59052,Cont-External,Capital
05/09/2019,12974,"66,992.59",0,South Yorks Fire & Rescue,EMERGENCY SERVICES COMMS PROGRAMME - WY,45126,ESMCP Funding,Revenue
05/09/2019,74613,"9,217.00",0,Foulds Lifts,CORPORATE MANAGEMENT AND SUPPORT,59052,Cont-External,Capital
06/09/2019,1526824-01,610.05,0,Crossroads Truck & Bus Ltd,FLEET MAINTENANCE,30001,Dir Cost-Spare Parts,Revenue
06/09/2019,INV-1838,832.00,0,Robert Whetham Associates,HUDDERSFIELD,42511,Consultancy Fees,Revenue
06/09/2019,INV/28802,590.00,0,DFP Services Limited,NORMN CLOSE CALL HSE,20000,Ann Contract/Service,Revenue
06/09/2019,1527222-01,684.40,0,Crossroads Truck & Bus Ltd,FLEET MAINTENANCE,30001,Dir Cost-Spare Parts,Revenue
06/09/2019,1527325-01,"1,584.79",0,Crossroads Truck & Bus Ltd,FLEET MAINTENANCE,30001,Dir Cost-Spare Parts,Revenue
06/09/2019,IN1191200052435,"16,062.86",0,GTT Communications,Information Technlgy,43018,Wan Rental,Revenue
06/09/2019,EC20210080,428.65,0,Kcom,Information Technlgy,43031,Systems Maint Non BT,Revenue
06/09/2019,216699198,"1,040.00",0,FUCHS LUBRICANTS (UK) LTD,FLEET MAINTENANCE,30002,Consumables-Veh Rep,Revenue
06/09/2019,ARL01471,"2,955.00",0,Airmax Remote,Information Technlgy,43103,ICT Maintenance & Support,Revenue
06/09/2019,ARL01664,"3,075.00",0,Airmax Remote,Information Technlgy,43103,ICT Maintenance & Support,Revenue
06/09/2019,ARL01939,"3,090.00",0,Airmax Remote,Information Technlgy,43103,ICT Maintenance & Support,Revenue
09/09/2019,BC-05-19-S2185,"34,773.27",0,Bristol Care,SUPPLIES SECTION,41900,Laundry,Revenue
09/09/2019,BC-06-19-S2193,"23,952.30",0,Bristol Care,SUPPLIES SECTION,41900,Laundry,Revenue
09/09/2019,28238,764.40,0,BCS Electrics Ltd,KEIGHLEY,21013,Electrical Reps (Fr),Revenue
09/09/2019,Q429377,857.52,0,NLA Media Access,PUBLIC INFORMATION,40221,Publty/Promtn/Media,Revenue
09/09/2019,74793,"1,600.50",0,Foulds Lifts,CORPORATE MANAGEMENT AND SUPPORT,59058,Fee-External,Capital
09/09/2019,28241,987.29,0,BCS Electrics Ltd,ILLINGWORTH,21013,Electrical Reps (Fr),Revenue
09/09/2019,INV-4342,"8,323.00",0,Inspectas Compliance Ltd,CORPORATE MANAGEMENT AND SUPPORT,59052,Cont-External,Capital
09/09/2019,4797,820.00,0,The Outreach Organisation Ltd,TRAINING DELIVERY,19241,Service Supp Tng,Revenue
09/09/2019,28242,741.60,0,BCS Electrics Ltd,HALIFAX,21013,Electrical Reps (Fr),Revenue
09/09/2019,28243,516.00,0,BCS Electrics Ltd,Cleckheaton,21013,Electrical Reps (Fr),Revenue
09/09/2019,28244,561.60,0,BCS Electrics Ltd,BINGLEY,21013,Electrical Reps (Fr),Revenue
09/09/2019,9576,750.00,0,Ioda Limited,EMPLOYEE RESOURCING,42511,Consultancy Fees,Revenue
09/09/2019,MC/231,"2,250.00",0,Montgomery & Coupers Ltd,PROPERTY,42511,Consultancy Fees,Revenue
09/09/2019,40221649,"7,276.97",0,Improvement and Development Agency,Corporate Governance,44502,AMA Grant,Revenue
09/09/2019,6334,"1,679.58",0,Fire Hosetech,OPERATIONS EQUIPMENT,40005,Operational Equ Pch,Revenue
09/09/2019,30233961,770.00,0,M I Supplies Ltd,SUPPLIES SECTION,41500,Clothing,Revenue
09/09/2019,2316,420.00,0,Hall Lane Recyclers Ltd,LEEDS,40025,Scrap Cars Purch,Revenue
09/09/2019,27685,"1,073.40",0,BCS Electrics Ltd,FAIRWEATHER GREEN,20000,Ann Contract/Service,Revenue
09/09/2019,2313,420.00,0,Hall Lane Recyclers Ltd,Calderdale Dist Com,40025,Scrap Cars Purch,Revenue
09/09/2019,2312,"2,800.00",0,Hall Lane Recyclers Ltd,TRAINING DELIVERY,40025,Scrap Cars Purch,Revenue
09/09/2019,INV0104768,602.94,0,Software Box Ltd,Information Technlgy,43103,ICT Maintenance & Support,Revenue
09/09/2019,52674,491.73,0,Ask,SUPPLIES SECTION,42100,Stationery,Revenue
09/09/2019,TK127375,"4,333.80",0,Thomas Kneale & Co Ltd,Fire Safety Prev,40037,,Revenue
09/09/2019,SI-576,496.64,0,Cafe Perfection,COOKRIDGE,21013,Electrical Reps (Fr),Revenue
09/09/2019,132533,"1,534.80",0,Keela International Ltd,SUPPLIES SECTION,41500,Clothing,Revenue
09/09/2019,2174,"3,600.00",0,Hall Lane Recyclers Ltd,TRAINING DELIVERY,40025,Scrap Cars Purch,Revenue
10/09/2019,MLCR085549,-736.62,-39.18,Lex Autolease,FLEET MANAGEMENT,34001,Vehicle Leasing,Revenue
10/09/2019,MLCR085622,-443.4,-28.51,Lex Autolease,FLEET MANAGEMENT,34001,Vehicle Leasing,Revenue
10/09/2019,MLCR085517,-870.84,-56.44,Lex Autolease,Kirklees Dist Com,34001,Vehicle Leasing,Revenue
10/09/2019,935921485,-610.8,0,Arco Group,CORPORATE MANAGEMENT AND SUPPORT,59164,Equipment,Capital
10/09/2019,MLIN085560,984.72,81.69,Lex Autolease,TRAINING DELIVERY,34001,Vehicle Leasing,Revenue
10/09/2019,INV13355L,443.75,0,3D Productions,RECRUITS,40100,Furniture,Revenue
10/09/2019,14048437,431.71,0,Corona Energy,Rastrick,25001,Energy-Gas,Revenue
10/09/2019,936185120,615.20,0,Arco Group,OPERATIONS EQUIPMENT,40005,Operational Equ Pch,Revenue
10/09/2019,28338,850.56,0,BCS Electrics Ltd,TRAINING DELIVERY,21013,Electrical Reps (Fr),Revenue
10/09/2019,28339,549.47,0,BCS Electrics Ltd,TRAINING DELIVERY,21013,Electrical Reps (Fr),Revenue
10/09/2019,14048438,436.29,0,Corona Energy,Dewsbury New,25001,Energy-Gas,Revenue
10/09/2019,3067,"1,575.00",0,Aire Valley Tree Services Ltd,TRAINING DELIVERY,21014,General Rep & Maint,Revenue
10/09/2019,77,"3,200.00",0,Michael Wood Management Consultancy,FINANCE SECTION,42511,Consultancy Fees,Revenue
10/09/2019,14048439,509.10,0,Corona Energy,Killingbeck,25001,Energy-Gas,Revenue
10/09/2019,14849,575.00,0,Bradshaw Gass & Hope Llp,PROPERTY,42613,Feasibility Study,Revenue
10/09/2019,42801,"9,035.80",0,Ark Display Graphics Ltd,PUBLIC INFORMATION,40221,Publty/Promtn/Media,Revenue
10/09/2019,21096,"1,197.00",0,Reactec Limited,FLEET MAINTENANCE,30005,Workshop Equipment,Revenue
10/09/2019,2910177071,"75,249.74",0,Draeger Ltd,OPERATIONS EQUIPMENT,40005,Operational Equ Pch,Revenue
10/09/2019,EXI1324312,"1,503.42",0,Lex Autolease,FLEET MANAGEMENT,34001,Vehicle Leasing,Revenue
10/09/2019,INV02325828,"2,824.43",0,Softcat Ltd,Information Technlgy,43103,ICT Maintenance & Support,Revenue
10/09/2019,140631,660.00,0,Sentinel,FLEET MAINTENANCE,30002,Consumables-Veh Rep,Revenue
11/09/2019,1011,"1,007.50",0,Advanced Monitoring Limited,PROPERTY,20000,Ann Contract/Service,Revenue
11/09/2019,1158,"1,007.50",0,Advanced Monitoring Limited,PROPERTY,20000,Ann Contract/Service,Revenue
11/09/2019,1019744,824.63,0,Bytes Security Partnerships Lt,Information Technlgy,43103,ICT Maintenance & Support,Revenue
11/09/2019,1019744,"3,627.04",0,Bytes Security Partnerships Lt,CORPORATE MANAGEMENT AND SUPPORT,59166,Computer Costs,Capital
11/09/2019,6.50015E+14,632.57,0,Yorkshire Water,CORPORATE MANAGEMENT AND SUPPORT,59164,Equipment,Capital
11/09/2019,6.50015E+14,697.57,0,Yorkshire Water,CORPORATE MANAGEMENT AND SUPPORT,59164,Equipment,Capital
11/09/2019,6.50015E+14,697.57,0,Yorkshire Water,CORPORATE MANAGEMENT AND SUPPORT,59164,Equipment,Capital
11/09/2019,6.50015E+14,978.97,0,Yorkshire Water,CORPORATE MANAGEMENT AND SUPPORT,59164,Equipment,Capital
11/09/2019,6.50016E+14,632.57,0,Yorkshire Water,CORPORATE MANAGEMENT AND SUPPORT,59164,Equipment,Capital
11/09/2019,E2011562183,"3,414.38",0,Allstar Business Solutions Ltd,Various,30200,Vehicle Fuel,Revenue
11/09/2019,26553,"12,612.30",0,C S TODD & ASSOCIATES LTD,FIRE LEGAL,42587,Legal Expenses,Revenue
11/09/2019,2019-37,722.00,0,Daniels Caf�,TRAINING DELIVERY,40502,Food,Revenue
11/09/2019,"14,484",755.82,0,Bella Refreshments Ltd,SUPPLIES SECTION,40514,Emergency Food,Revenue
11/09/2019,52650,"1,599.00",0,Ask,SUPPLIES SECTION,41900,Laundry,Revenue
11/09/2019,52772,577.50,0,Ask,SUPPLIES SECTION,42100,Stationery,Revenue
11/09/2019,4479922,"15,238.80",0,Insight Direct (UK) Ltd,Information Technlgy,43103,ICT Maintenance & Support,Revenue
11/09/2019,74826,431.48,0,Foulds Lifts,NEW CONTROL PROJECT,21014,General Rep & Maint,Revenue
11/09/2019,14291409,562.81,0,Corona Energy,WAKEFIELD,25001,Energy-Gas,Revenue
11/09/2019,14291411,444.19,0,Corona Energy,KEIGHLEY,25001,Energy-Gas,Revenue
12/09/2019,1525232-01,-435.44,0,Crossroads Truck & Bus Ltd,FLEET MAINTENANCE,30001,Dir Cost-Spare Parts,Revenue
12/09/2019,1525225-01,565.14,0,Crossroads Truck & Bus Ltd,FLEET MAINTENANCE,30001,Dir Cost-Spare Parts,Revenue
12/09/2019,1525214-01,457.52,0,Crossroads Truck & Bus Ltd,FLEET MAINTENANCE,30001,Dir Cost-Spare Parts,Revenue
12/09/2019,7735321,"3,243.22",0,Chubb Fire Ltd,Various,40006,Training Equ Purch,Revenue
12/09/2019,1527537-01,980.00,0,Crossroads Truck & Bus Ltd,FLEET MAINTENANCE,30001,Dir Cost-Spare Parts,Revenue
12/09/2019,LGWC67FF,"1,652.33",0,Npower Ltd,PROPERTY,25000,Energy-Electric,Revenue
12/09/2019,SINV065185,463.12,0,Woodway Engineering Ltd,FLEET MAINTENANCE,30001,Dir Cost-Spare Parts,Revenue
12/09/2019,2871753,"2,577.75",0,Bayford Oil,LEEDS,30200,Vehicle Fuel,Revenue
12/09/2019,4725,820.00,0,The Outreach Organisation Ltd,TRAINING DELIVERY,19241,Service Supp Tng,Revenue
12/09/2019,2328,420.00,0,Hall Lane Recyclers Ltd,GARFORTH,40025,Scrap Cars Purch,Revenue
12/09/2019,2808009376,"10,171.75",0,Sunderland City Council,,43500,Subsistence Allowncs,Revenue
12/09/2019,14847,"1,114.00",0,Bradshaw Gass & Hope Llp,CORPORATE MANAGEMENT AND SUPPORT,59058,Fee-External,Capital
12/09/2019,MJA01461,"2,885.30",0,Mja Consultants,TRAINING DELIVERY,21013,Electrical Reps (Fr),Revenue
12/09/2019,MJA01462,"2,902.20",0,Mja Consultants,TRAINING DELIVERY,21013,Electrical Reps (Fr),Revenue
13/09/2019,502730G,453.81,0,Arena Group Limited,OPERATIONS TEAM,42201,Photocopier Charges,Revenue
13/09/2019,502731G,585.79,0,Arena Group Limited,FINANCE SECTION,42201,Photocopier Charges,Revenue
13/09/2019,1157,490.00,0,Mrs C Livesey T/a Warmbread,PUBLIC INFORMATION,40221,Publty/Promtn/Media,Revenue
13/09/2019,1920127,720.00,0,Pepperdog Design Ltd,Information Technlgy,43103,ICT Maintenance & Support,Revenue
13/09/2019,50820,"3,850.00",0,Safequip Ltd,OPERATIONS EQUIPMENT,40005,Operational Equ Pch,Revenue
13/09/2019,14048441,565.65,0,Corona Energy,Ossett New,25001,Energy-Gas,Revenue
13/09/2019,14119113,517.23,0,Corona Energy,Ossett New,25001,Energy-Gas,Revenue
13/09/2019,27891,"5,290.19",0,BCS Electrics Ltd,NEW CONTROL PROJECT,20000,Ann Contract/Service,Revenue
13/09/2019,CSI00356,"41,787.74",0,Marshall Building Contractors,CORPORATE MANAGEMENT AND SUPPORT,59052,Cont-External,Capital
13/09/2019,3280,"66,992.59",0,North Yorkshire Fire and Rescue Ser,EMERGENCY SERVICES COMMS PROGRAMME - WY,45126,ESMCP Funding,Revenue
13/09/2019,29839,"3,750.00",0,Northern Pump Distributors,PROPERTY,21014,General Rep & Maint,Revenue
13/09/2019,92361832,"6,349.62",0,Vodafone (Mobiles),Information Technlgy,43017,Corporate Mobile Phone,Revenue
13/09/2019,INV-1841,"1,972.00",0,Robert Whetham Associates,PROPERTY,20002,Contract Management,Revenue
13/09/2019,PSI1344170,"1,637.73",0,Hj Sock Group Ltd,SUPPLIES SECTION,41500,Clothing,Revenue
13/09/2019,INV-1852,"2,900.00",0,Robert Whetham Associates,CORPORATE MANAGEMENT AND SUPPORT,59058,Fee-External,Capital
13/09/2019,INV-1856,"3,744.00",0,Robert Whetham Associates,PROPERTY,42511,Consultancy Fees,Revenue
13/09/2019,29392479,"3,542.00",0,M I Supplies Ltd,SUPPLIES SECTION,41500,Clothing,Revenue
13/09/2019,I0022156,"2,839.80",0,Merseyside Fire & Rescue Authority,TRAINING DELIVERY,19238,Ops Res Tng,Revenue
13/09/2019,138082,650.00,0,Clarion Solicitors Limited,FIRE LEGAL,42587,Legal Expenses,Revenue
13/09/2019,D035,650.00,0,United Kingdom Rescue Organisation,TRAINING DELIVERY,19238,Ops Res Tng,Revenue
13/09/2019,636616-0001,471.29,0,Total Safety Services Ltd,OPERATIONS EQUIPMENT,40005,Operational Equ Pch,Revenue
13/09/2019,INV/5637,"7,685.89",0,Industrial Door Solutions Limited,Various,20000,Ann Contract/Service,Revenue
16/09/2019,SI210629,890.00,0,Dale Power Solutions Ltd,Various,20000,Ann Contract/Service,Revenue
16/09/2019,14317/10,"2,286.00",0,Rance Booth & Smith Architects,PROPERTY,42511,Consultancy Fees,Revenue
16/09/2019,1050,800.00,0,Leeds Cookery School Ltd,TRAINING DELIVERY,19239,Ops Supp Tng,Revenue
16/09/2019,28343,"4,194.09",0,BCS Electrics Ltd,Various,21013,Electrical Reps (Fr),Revenue
16/09/2019,46339,490.00,0,Enserve Corporation Ltd,NEW CONTROL PROJECT,21014,General Rep & Maint,Revenue
17/09/2019,1600000351,-1427.11,0,Yorkshire Water,CORPORATE MANAGEMENT AND SUPPORT,59164,Equipment,Capital
17/09/2019,65001980,-1457.91,0,Yorkshire Water,CORPORATE MANAGEMENT AND SUPPORT,59164,Equipment,Capital
17/09/2019,LGX10198,-6602.02,0,Npower Ltd,PROPERTY,25000,Energy-Electric,Revenue
17/09/2019,60983,-475,0,Access Uk Ltd,CORPORATE MANAGEMENT AND SUPPORT,59166,Computer Costs,Capital
17/09/2019,PAYL3 ALEVY05,"16,302.00",0,HMRC Cumbernauld,EMPLOYEE RESOURCING,19202,Apprentice Tng,Revenue
17/09/2019,INV-4407,"5,884.00",0,Inspectas Compliance Ltd,CORPORATE MANAGEMENT AND SUPPORT,59052,Cont-External,Capital
17/09/2019,6.50015E+14,887.58,0,Yorkshire Water,CORPORATE MANAGEMENT AND SUPPORT,59164,Equipment,Capital
17/09/2019,6.50004E+14,"1,457.91",0,Yorkshire Water,CORPORATE MANAGEMENT AND SUPPORT,59164,Equipment,Capital
17/09/2019,6.55564E+14,"1,427.11",0,Yorkshire Water,CORPORATE MANAGEMENT AND SUPPORT,59164,Equipment,Capital
17/09/2019,6.50014E+14,677.57,0,Yorkshire Water,CORPORATE MANAGEMENT AND SUPPORT,59164,Equipment,Capital
17/09/2019,6.50016E+14,978.97,0,Yorkshire Water,CORPORATE MANAGEMENT AND SUPPORT,59164,Equipment,Capital
17/09/2019,6.50015E+14,"1,457.91",0,Yorkshire Water,CORPORATE MANAGEMENT AND SUPPORT,59164,Equipment,Capital
17/09/2019,6.50015E+14,887.58,0,Yorkshire Water,CORPORATE MANAGEMENT AND SUPPORT,59164,Equipment,Capital
17/09/2019,6.50015E+14,697.57,0,Yorkshire Water,CORPORATE MANAGEMENT AND SUPPORT,59164,Equipment,Capital
17/09/2019,RF19/11868-4370,570.00,0,Deacon & Jones LLP,PROPERTY,42511,Consultancy Fees,Revenue
17/09/2019,65001619000000X,"1,457.91",0,Yorkshire Water,CORPORATE MANAGEMENT AND SUPPORT,59164,Equipment,Capital
17/09/2019,6.50015E+14,697.57,0,Yorkshire Water,CORPORATE MANAGEMENT AND SUPPORT,59164,Equipment,Capital
17/09/2019,6.50015E+14,"1,457.91",0,Yorkshire Water,CORPORATE MANAGEMENT AND SUPPORT,59164,Equipment,Capital
17/09/2019,6.50016E+14,"1,568.91",0,Yorkshire Water,CORPORATE MANAGEMENT AND SUPPORT,59164,Equipment,Capital
17/09/2019,INV-4290,600.00,0,Inspectas Compliance Ltd,CORPORATE MANAGEMENT AND SUPPORT,59058,Fee-External,Capital
17/09/2019,711548,950.00,0,Access Uk Ltd,CORPORATE MANAGEMENT AND SUPPORT,59166,Computer Costs,Capital
17/09/2019,6209933,905.00,0,Leeds Beckett University,TRAINING DELIVERY,19204,Apprenticeships,Revenue
17/09/2019,LGX04571,"6,602.02",0,Npower Ltd,PROPERTY,25000,Energy-Electric,Revenue
17/09/2019,2049703,684.50,0,Giffard Newton & Sons Ltd,SUPPLIES SECTION,41500,Clothing,Revenue
17/09/2019,B-21398/3,"1,050.00",0,Acorn Analytical Services Ltd,Various,20001,Water Management Legionella,Revenue
17/09/2019,LGX10199,"6,602.02",0,Npower Ltd,Various,25000,Energy-Electric,Revenue
17/09/2019,720938,"1,900.00",0,Access Uk Ltd,CORPORATE MANAGEMENT AND SUPPORT,59166,Computer Costs,Capital
17/09/2019,721104,950.00,0,Access Uk Ltd,CORPORATE MANAGEMENT AND SUPPORT,59166,Computer Costs,Capital
17/09/2019,6.50019E+14,978.97,0,Yorkshire Water,CORPORATE MANAGEMENT AND SUPPORT,59164,Equipment,Capital
17/09/2019,17042,"1,200.00",0,GOV TV Ltd T/a GOV Radio,Various,45108,Fire Prevn Pblcty,Revenue
17/09/2019,28337,542.46,0,BCS Electrics Ltd,BRADFORD,21013,Electrical Reps (Fr),Revenue
17/09/2019,52745,654.76,0,Ask,SUPPLIES SECTION,Various,Various,Revenue
18/09/2019,P0028447,480.00,0,Healthwork Ltd,Health & Safety,18301,Specialists Fees,Revenue
18/09/2019,CD20191023458,591.35,0,Survitec Service & Distribution Ltd,OPERATIONS EQUIPMENT,40005,Operational Equ Pch,Revenue
18/09/2019,97134,"6,691.20",0,Wm Sugden & Sons Ltd,SUPPLIES SECTION,41500,Clothing,Revenue
18/09/2019,504620G,425.72,0,Arena Group Limited,EMPLOYEE RESOURCING,42201,Photocopier Charges,Revenue
18/09/2019,YSI-834543,502.52,0,Waste Care Ltd,SUPPLIES SECTION,40011,Recycling,Revenue
18/09/2019,504617G,732.08,0,Arena Group Limited,EMPLOYMENT SERVICES,42201,Photocopier Charges,Revenue
18/09/2019,BC-04-19-S2166,"31,700.11",0,Bristol Care,SUPPLIES SECTION,41900,Laundry,Revenue
18/09/2019,3054310620,"1,624.68",0,British Oxygen Co Ltd,Various,40005,Operational Equ Pch,Revenue
18/09/2019,INV-1855,"2,109.00",0,Robert Whetham Associates,CORPORATE MANAGEMENT AND SUPPORT,59058,Fee-External,Capital
18/09/2019,9168,"5,168.60",0,Wharfedale Construction Ltd,CORPORATE MANAGEMENT AND SUPPORT,59052,Cont-External,Capital
18/09/2019,INV-4406,"7,310.00",0,Inspectas Compliance Ltd,CORPORATE MANAGEMENT AND SUPPORT,59052,Cont-External,Capital
18/09/2019,11,525.00,0,PK Prep Ltd,RECRUITS,40502,Food,Revenue
18/09/2019,UK-19-0000290,"1,372.00",0,Jolly Safety Equipment Ltd,Various,41500,Clothing,Revenue
18/09/2019,11316,"2,090.50",0,Rosenbauer UK PLC,FLEET MANAGEMENT,30004,Rep-Ext Contractors,Revenue
18/09/2019,EXI1319284,"1,512.02",0,Lex Autolease,FLEET MANAGEMENT,34001,Vehicle Leasing,Revenue
18/09/2019,78,"2,800.00",0,Michael Wood Management Consultancy,FINANCE SECTION,42511,Consultancy Fees,Revenue
19/09/2019,INVUK8275,495.00,0,Cadline Ltd,TRAINING DELIVERY,19242,Strategic Dev Tng,Revenue
19/09/2019,BC-08-19-S2228,"3,556.55",0,Bristol Care,SUPPLIES SECTION,41900,Laundry,Revenue
19/09/2019,1909032725,"15,523.20",0,Avepoint Uk Ltd,Information Technlgy,43103,ICT Maintenance & Support,Revenue
19/09/2019,08/19 10,"1,644.00",0,First Products (Sussex) Limited,SUPPLIES SECTION,41500,Clothing,Revenue
19/09/2019,I-012726,"66,992.59",0,Humberside Fire & Rescue Servi,EMERGENCY SERVICES COMMS PROGRAMME - WY,45126,ESMCP Funding,Revenue
19/09/2019,EXI1327743,"2,566.90",0,Lex Autolease,FLEET MANAGEMENT,34001,Vehicle Leasing,Revenue
19/09/2019,10031,"1,210.00",0,Burgess & Co Ltd,FLEET MAINTENANCE,30001,Dir Cost-Spare Parts,Revenue
19/09/2019,1022,"2,261.00",0,The Coldwell Inn Project,YOUNG FIREFIGHTERS,45109,Youth Training Exps,Revenue
19/09/2019,INV-4632,"8,668.00",0,Pulse Cashflow Finance,Various,28502,Contract Cleaning,Revenue
19/09/2019,INV-4633,"4,460.61",0,Pulse Cashflow Finance,Various,28502,Contract Cleaning,Revenue
19/09/2019,INV-4634,"5,540.26",0,Pulse Cashflow Finance,Various,28502,Contract Cleaning,Revenue
19/09/2019,INV-4695,909.49,0,Pulse Cashflow Finance,PONTEFRACT,28502,Contract Cleaning,Revenue
19/09/2019,16742,615.17,0,Mitton Aftercare Ltd,GARFORTH,21012,Heating & Mechanical,Revenue
19/09/2019,2900785,"4,129.60",0,Bayford Oil,Ossett New,30200,Vehicle Fuel,Revenue
19/09/2019,71389,"3,000.00",0,Oakbase Intergrated Marketing Ltd,PUBLIC INFORMATION,40221,Publty/Promtn/Media,Revenue
19/09/2019,77220,961.80,0,Saville Assessment Ltd,EMPLOYMENT SERVICES,42539,Professional Service,Revenue
20/09/2019,27967,"8,568.73",0,BCS Electrics Ltd,Various,20000,Ann Contract/Service,Revenue
20/09/2019,28342,"4,029.54",0,BCS Electrics Ltd,Various,20000,Ann Contract/Service,Revenue
20/09/2019,28341,"7,387.00",0,BCS Electrics Ltd,CORPORATE MANAGEMENT AND SUPPORT,59052,Cont-External,Capital
23/09/2019,SI210966,"2,750.00",0,Dale Power Solutions Ltd,HUDDERSFIELD,21013,Electrical Reps (Fr),Revenue
23/09/2019,SI210969,"2,500.00",0,Dale Power Solutions Ltd,BRADFORD,21013,Electrical Reps (Fr),Revenue
23/09/2019,SI210972,"2,350.00",0,Dale Power Solutions Ltd,HALIFAX,21013,Electrical Reps (Fr),Revenue
23/09/2019,14289773,438.90,0,Corona Energy,NEW CONTROL PROJECT,25001,Energy-Gas,Revenue
23/09/2019,14291391,623.32,0,Corona Energy,RAWDON,25001,Energy-Gas,Revenue
23/09/2019,INV/30347,480.00,0,DFP Services Limited,Various,20000,Ann Contract/Service,Revenue
23/09/2019,1353664,433.68,0,Fcc Recycling (Uk) Limited,HALIFAX,28506,Refuse Collect/Disp,Revenue
23/09/2019,9603,"5,560.00",0,Ioda Limited,CORPORATE DIVERSITY,19235,Emp Svc Tng,Revenue
23/09/2019,9602,750.00,0,Ioda Limited,EMPLOYEE RESOURCING,42511,Consultancy Fees,Revenue
24/09/2019,1688/1C,-765,0,2H Architecture Limited,CORPORATE MANAGEMENT AND SUPPORT,59058,Fee-External,Capital
24/09/2019,1279,975.00,0,Advanced Monitoring Limited,PROPERTY,20000,Ann Contract/Service,Revenue
24/09/2019,2529322,"57,850.74",0,Home Office,OPERATIONS,43026,Radio Licensing,Revenue
24/09/2019,83709,442.50,0,Lsi Limited,SUPPLIES SECTION,41500,Clothing,Revenue
24/09/2019,RAIN309578,"4,674.23",0,Lex Autolease,FLEET MANAGEMENT,34002,Vhcle Leas Misc Exp,Revenue
24/09/2019,INV-2036,"4,950.00",0,2H Architecture Limited,CORPORATE MANAGEMENT AND SUPPORT,59058,Fee-External,Capital
24/09/2019,INV-2035,"1,400.00",0,2H Architecture Limited,CORPORATE MANAGEMENT AND SUPPORT,59058,Fee-External,Capital
24/09/2019,INV-2034,"1,730.00",0,2H Architecture Limited,CORPORATE MANAGEMENT AND SUPPORT,59058,Fee-External,Capital
24/09/2019,INV-2032,"1,020.00",0,2H Architecture Limited,CORPORATE MANAGEMENT AND SUPPORT,59058,Fee-External,Capital
24/09/2019,1688/1,765.00,0,2H Architecture Limited,CORPORATE MANAGEMENT AND SUPPORT,59058,Fee-External,Capital
24/09/2019,6.55648E+14,"1,457.91",0,Yorkshire Water,CORPORATE MANAGEMENT AND SUPPORT,59164,Equipment,Capital
24/09/2019,724886,"1,425.00",0,Access Uk Ltd,CORPORATE MANAGEMENT AND SUPPORT,59166,Computer Costs,Capital
24/09/2019,723944,950.00,0,Access Uk Ltd,CORPORATE MANAGEMENT AND SUPPORT,59166,Computer Costs,Capital
25/09/2019,OP/C029160,-24454.55,0,Phoenix Software Ltd,CORPORATE MANAGEMENT AND SUPPORT,59166,Computer Costs,Capital
25/09/2019,4522537,-710,0,Insight Direct (UK) Ltd,Information Technlgy,43022,ICT Spares & Repairs,Revenue
25/09/2019,OP/I847777,"24,454.55",0,Phoenix Software Ltd,CORPORATE MANAGEMENT AND SUPPORT,59166,Computer Costs,Capital
25/09/2019,722508,"1,538.80",0,Access Uk Ltd,CORPORATE MANAGEMENT AND SUPPORT,59166,Computer Costs,Capital
25/09/2019,723740,950.00,0,Access Uk Ltd,CORPORATE MANAGEMENT AND SUPPORT,59166,Computer Costs,Capital
25/09/2019,100045892,"2,250.00",0,MPL (Yorkshire) Ltd T/A MPL,CORPORATE MANAGEMENT AND SUPPORT,59164,Equipment,Capital
25/09/2019,7402556129,"2,465.30",0,Dell Corporation,CORPORATE MANAGEMENT AND SUPPORT,59166,Computer Costs,Capital
25/09/2019,100130A,"3,103.82",0,Townley Network Solutions Ltd,Various,43015,Landlines Call Charges,Revenue
25/09/2019,E2011614997,"2,908.38",0,Allstar Business Solutions Ltd,Various,30200,Vehicle Fuel,Revenue
25/09/2019,24188,"2,885.68",0,Emergency One (Uk) Ltd,FLEET MANAGEMENT,30004,Rep-Ext Contractors,Revenue
25/09/2019,7970074080,502.00,0,Mitchell Powersystems,FLEET MAINTENANCE,30001,Dir Cost-Spare Parts,Revenue
25/09/2019,24185,"2,088.75",0,Emergency One (Uk) Ltd,FLEET MANAGEMENT,30004,Rep-Ext Contractors,Revenue
25/09/2019,4488094,710.00,0,Insight Direct (UK) Ltd,Information Technlgy,43022,ICT Spares & Repairs,Revenue
25/09/2019,62579,"1,160.00",0,Solarshade Window Films Ltd,TRAINING DELIVERY,21014,General Rep & Maint,Revenue
26/09/2019,0712315/WSH/103,"1,226.89",0,Pelican Engineering Co (Sales),FLEET MANAGEMENT,30004,Rep-Ext Contractors,Revenue
26/09/2019,2897317,"3,097.20",0,Bayford Oil,KEIGHLEY,30200,Vehicle Fuel,Revenue
26/09/2019,28596,"1,765.00",0,Astutis Ltd,TRAINING DELIVERY,19241,Service Supp Tng,Revenue
26/09/2019,7402557163,"1,080.00",0,Dell Corporation,Information Technlgy,43022,ICT Spares & Repairs,Revenue
26/09/2019,13658,"1,450.00",0,West Yorkshire Windscreens Ltd,FLEET MAINTENANCE,30004,Rep-Ext Contractors,Revenue
26/09/2019,SLN/00000050,"3,105.00",0,Kirklees College,TRAINING DELIVERY,19203,Non Uniformed,Revenue
26/09/2019,12,660.00,0,PK Prep Ltd,RECRUITS,40502,Food,Revenue
26/09/2019,456468,998.00,0,A-One Tools & Fixings,Various,40010,Station Devt Equpmnt,Revenue
26/09/2019,PI439351,498.67,0,Safety-Kleen Uk Ltd,FLEET MAINTENANCE,30002,Consumables-Veh Rep,Revenue
26/09/2019,PSI-9259411,"1,500.00",0,Technology Services Group,Information Technlgy,43103,ICT Maintenance & Support,Revenue
26/09/2019,338926,"1,887.55",0,Systems Assurance Ltd,Information Technlgy,43103,ICT Maintenance & Support,Revenue
26/09/2019,760,"1,835.59",0,NWFS,EMPLOYEE RESOURCING,42511,Consultancy Fees,Revenue
26/09/2019,11098,"1,750.00",0,Impeller Assurance & Resilience Ltd,TRAINING DELIVERY,19241,Service Supp Tng,Revenue
26/09/2019,10636,"2,372.00",0,T Kirk Forestry,National Resilience Distributed Learning,45123,Chainsaw Operator,Revenue
26/09/2019,1964765-1,"4,675.00",0,Cardiff University,TRAINING DELIVERY,19205,Health & Safety,Revenue
27/09/2019,INV-4432,"2,500.00",0,Inspectas Compliance Ltd,PROPERTY,20000,Ann Contract/Service,Revenue
27/09/2019,13,600.00,0,PK Prep Ltd,RECRUITS,40502,Food,Revenue
27/09/2019,14,600.00,0,PK Prep Ltd,RECRUITS,40502,Food,Revenue
27/09/2019,Aug-19,"3,680.00",0,Dr N A L Smith (Medical Services) L,Health & Safety,42510,Client Med Fees/Exps,Revenue
27/09/2019,6.50021E+14,"1,457.91",0,Yorkshire Water,CORPORATE MANAGEMENT AND SUPPORT,59164,Equipment,Capital
27/09/2019,79,"3,200.00",0,Michael Wood Management Consultancy,FINANCE SECTION,42511,Consultancy Fees,Revenue
27/09/2019,28332,515.70,0,BCS Electrics Ltd,FEATHERSTONE,21013,Electrical Reps (Fr),Revenue
27/09/2019,28335,958.43,0,BCS Electrics Ltd,CASTLEFORD,21013,Electrical Reps (Fr),Revenue
27/09/2019,28409,801.60,0,BCS Electrics Ltd,ODSAL,21013,Electrical Reps (Fr),Revenue
30/09/2019,28327,944.30,0,BCS Electrics Ltd,NORMANTON,21013,Electrical Reps (Fr),Revenue
30/09/2019,9.1059E+15,"14,563.49",0,Yorkshire Water,Various,26500,Water - Metered,Revenue
30/09/2019,6.50021E+14,"1,457.91",0,Yorkshire Water,CORPORATE MANAGEMENT AND SUPPORT,59164,Equipment,Capital
30/09/2019,65002138000000X,978.97,0,Yorkshire Water,CORPORATE MANAGEMENT AND SUPPORT,59164,Equipment,Capital
30/09/2019,6.50021E+14,632.57,0,Yorkshire Water,CORPORATE MANAGEMENT AND SUPPORT,59164,Equipment,Capital
30/09/2019,11636,"87,183.00",0,Rosenbauer UK PLC,CORPORATE MANAGEMENT AND SUPPORT,59165,Vehicles & Plant,Capital
30/09/2019,28408,470.28,0,BCS Electrics Ltd,HUDDERSFIELD,21013,Electrical Reps (Fr),Revenue
30/09/2019,46029,543.00,0,Enserve Corporation Ltd,RAWDON,21013,Electrical Reps (Fr),Revenue
30/09/2019,SINV/00029692,"5,699.94",0,Government Actuary's Dept,FINANCE SECTION,40205,Book/Publications,Revenue
30/09/2019,6.50019E+14,"1,457.91",0,Yorkshire Water,MIRFIELD,21014,General Rep & Maint,Revenue
30/09/2019,300237654,"2,766.00",0,Freight Transport Association,TRAINING DELIVERY,19243,Tech Svcs Tng,Revenue
30/09/2019,SI-637,496.64,0,Cafe Perfection,NEW CONTROL PROJECT,21014,General Rep & Maint,Revenue
